Workbook

Sheet Instructions
B2: Supply and Demand Instructions
D4: All cells in this input template are locked apart from the coloured cells described below.
B6: 1 | D6: You have to click in "Enable Content" when opening this Model, so it can run some VBA code properly.
B8: 2 | D8: Go to Summary Output tab.
D9: Fill all white fields in the INPUT FORM.
C10: a. | D10: Company Name
C11: b. | D11: Role to be analysed
C12: c. | D12: Business Units (BU) with the selected role
D13: * Total FTEs for the role in each BU.
D14: * Up to 3 Growth drivers % projection for each BU
C15: d. | D15: Attrition Rate - you can use the Attrition Template as a base to calculate your rate
C16: e. | D16: Retirement Rate - you can use the Attrition Template as a base to calculate your rate
C17: f. | D17: Faethm data (Automation and Capacity Gain percentages) to be extracted in Faethm plataform.
B19: 3 | D19: Optional
D20: Fill Attrition_Template blank fields to get your Attrition and retirement rates
B22: 4 | D22: Once all inputs have been completed, check that there are no errors in any sheet by reviewing any red cells in the workforce data tab.
D23: Where possible, source any missing data.
B25: 5 | D25: Summary is presented on Summary Output and Summary Output by BUs tabs.
D28: Input Cells
D29: Example | E29: Calculated field
E30: Data input requiring manual entry. They are on Summary Output and Attrition_Template(optional) tabs only.
B33: Supply and Demand Assumptions - needs to be updated
B35: Data Calculations
B37: Supply has been calculated on current FTE, minus those eligible to retire (65+ years), minus the average attrition rate, plus Capacity Gained FTEs
B38: Demand has been calculated by current amount of FTE mapped to each BU with Growth Drivers% applied along the next 10 years; then, including Automation in the scenarium.
B40: Additional Considerations
B41: Attrition rates do not include contractors or temporary employees.

Sheet Summary Output TOTAL (hidden)
C2: Scenario 1 - Automation and Augmentation
B5: Role A | C5: =Role_A ->  | G5: Current | H5: ="FY" & RIGHT(YearReference+1,2) ->  | I5: ="FY" & RIGHT(YearReference+2,2) ->  | J5: ="FY" & RIGHT(YearReference+3,2) ->  | K5: ="FY" & RIGHT(YearReference+4,2) ->  | L5: ="FY" & RIGHT(YearReference+5,2) ->  | M5: ="FY" & RIGHT(YearReference+6,2) ->  | N5: ="FY" & RIGHT(YearReference+7,2) ->  | O5: ="FY" & RIGHT(YearReference+8,2) ->  | P5: ="FY" & RIGHT(YearReference+9,2) ->  | Q5: ="FY" & RIGHT(YearReference+10,2) -> 
F6: Supply | G6: =Supply!E17 -> 264.35034 | H6: =Supply!F17 -> 226.4213532 | I6: =Supply!G17 -> 194.2219726 | J6: =Supply!H17 -> 166.8599811 | K6: =Supply!I17 -> 143.5496417 | L6: =Supply!J17 -> 123.6163385 | M6: =Supply!K17 -> 106.4930033 | N6: =Supply!L17 -> 91.72029385 | O6: =Supply!M17 -> 78.93356769 | P6: =Supply!N17 -> 67.85050545 | Q6: =Supply!#REF! -> 
F7: calc1 | G7: =G10 -> 264.35034 | H7: =G7+G7*Demand!E30 -> 290.785374 | I7: =H7+H7*Demand!F30 -> 319.8639114 | J7: =I7+I7*Demand!G30 -> 351.8503025 | K7: =J7+J7*Demand!H30 -> 387.0353328 | L7: =K7+K7*Demand!I30 -> 425.7388661 | M7: =L7+L7*Demand!J30 -> 468.3127527 | N7: =M7+M7*Demand!K30 -> 515.1440279 | O7: =N7+N7*Demand!L30 -> 566.6584307 | P7: =O7+O7*Demand!M30 -> 623.3242738 | Q7: =P7+P7*Demand!N30 -> 685.6567012
F8: calc2 | G8: =G10 -> 264.35034 | H8: =G8+G8*Demand!E46 -> 317.220408 | I8: =H8+H8*Demand!F46 -> 380.6644896 | J8: =I8+I8*Demand!G46 -> 456.7973875 | K8: =J8+J8*Demand!H46 -> 548.156865 | L8: =K8+K8*Demand!I46 -> 657.788238 | M8: =L8+L8*Demand!J46 -> 789.3458856 | N8: =M8+M8*Demand!K46 -> 947.2150628 | O8: =N8+N8*Demand!L46 -> 1136.658075 | P8: =O8+O8*Demand!M46 -> 1363.98969 | Q8: =P8+P8*Demand!N46 -> 1636.787628
F9: calc3 | G9: =G10 -> 264.35034 | H9: =G9+G9*Demand!E62 -> 296.0723808 | I9: =H9+H9*Demand!F62 -> 331.6010665 | J9: =I9+I9*Demand!G62 -> 371.3931945 | K9: =J9+J9*Demand!H62 -> 415.9603778 | L9: =K9+K9*Demand!I62 -> 465.8756232 | M9: =L9+L9*Demand!J62 -> 521.7806979 | N9: =M9+M9*Demand!K62 -> 584.3943817 | O9: =N9+N9*Demand!L62 -> 654.5217075 | P9: =O9+O9*Demand!M62 -> 733.0643124 | Q9: =P9+P9*Demand!N62 -> 821.0320299
F10: Demand orig | G10: =G6 -> 264.35034 | H10: =G10+SUM(H11:H13) -> 375.3774828 | I10: =H10+SUM(I11:I13) -> 503.4287875 | J10: 651.3402045 | K10: 822.4518956 | L10: 1020.702047 | M10: 1250.738656 | N10: 1518.052792 | O10: 1829.137534 | P10: 2191.677597 | Q10: 2614.77568
F11: Driver 1 | G11: 0 | H11: =H7-G7 -> 26.435034 | I11: =I7-H7 -> 29.0785374 | J11: 31.98639114 | K11: 35.18503025 | L11: 38.70353328 | M11: 42.57388661 | N11: 46.83127527 | O11: 51.51440279 | P11: 56.66584307 | Q11: 62.33242738
F12: Driver 2 | G12: 0 | H12: =H8-G8 -> 52.870068 | I12: =I8-H8 -> 63.4440816 | J12: 76.13289792 | K12: 91.3594775 | L12: 109.631373 | M12: 131.5576476 | N12: 157.8691771 | O12: 189.4430126 | P12: 227.3316151 | Q12: 272.7979381
F13: Driver 3 | G13: 0 | H13: =H9-G9 -> 31.7220408 | I13: =I9-H9 -> 35.5286857 | J13: 39.79212798 | K13: 44.56718334 | L13: 49.91524534 | M13: 55.90507478 | N13: 62.61368375 | O13: 70.1273258 | P13: 78.5426049 | Q13: 87.96771749
F14: Automation | G14: 0 | H14: =Automation -> 0.202 | I14: 0.256 | J14: 0.316 | K14: 0.377 | L14: 0.435 | M14: 0.487 | N14: 0.531 | O14: 0.566 | P14: 0.594 | Q14: 0.616
F15: Augmentation | G15: 0 | H15: =Augmentation -> 0.01189 | I15: 0.01641 | J15: 0.0222 | K15: 0.02932 | L15: 0.03762 | M15: 0.04676 | N15: 0.05624 | O15: 0.06552 | P15: 0.07411 | Q15: 0.0817
F16: Demand | G16: =G10+(G11+G12+G13)-(G14+G15) -> 264.35034 | H16: =H10+(H11+H12+H13)-(H14+H15) -> 486.1907356 | I16: =I10+(I11+I12+I13)-(I14+I15) -> 631.2076822 | J16: 798.9134216 | K16: 993.1572667 | L16: 1218.479579 | M16: 1480.241505 | N16: 1784.779689 | O16: 2139.590755 | P16: 2553.54955 | Q16: 3037.176062
F17: Gap | G17: =G6-G16 -> 0 | H17: -259.7693824 | I17: -436.9857096 | J17: -632.0534405 | K17: -849.607625 | L17: -1094.86324 | M17: -1373.748502 | N17: -1693.059395 | O17: -2060.657187 | P17: -2485.699044 | S17: =IF(SUM(H17:Q17)<>SUM(#REF!),"ERROR!","") -> 

Sheet Summary Output
B2: Input Form | T2: Automation and Capacity Gain - All Business Units
T4: =E7 -> Client Service Representative | U4: Current | V4: =Supply!E12 -> Year 1 | W4: =Supply!F12 -> Year 2 | X4: =Supply!G12 -> Year 3 | Y4: =Supply!H12 -> Year 4 | Z4: =Supply!I12 -> Year 5 | AA4: =Supply!J12 -> Year 6 | AB4: =Supply!K12 -> Year 7 | AC4: =Supply!L12 -> Year 8 | AD4: =Supply!M12 -> Year 9 | AE4: =Supply!N12 -> Year 10
T5: FTE affected by attrition | U5: ='Summary Output by BU'!C6+'Summary Output by BU'!C20+'Summary Output by BU'!C34+'Summary Output by BU'!C48+'Summary Output by BU'!C62 -> 306 | V5: =U9 -> 306 | W5: =V9 -> 264.35034 | X5: =W9 -> 226.4213532 | Y5: =X9 -> 194.2219726 | Z5: 166.8599811 | AA5: 143.5496417 | AB5: 123.6163385 | AC5: 106.4930033 | AD5: 91.72029385 | AE5: 78.93356769
C6: Company: | E6: Global European Bank | T6: Predicted Retirement | V6: =Supply!E14 -> -7.038 | W6: =Supply!F14 -> -6.08005782 | X6: =Supply!G14 -> -5.207691124 | Y6: =Supply!H14 -> -4.467105369 | Z6: =Supply!I14 -> -3.837779565 | AA6: =Supply!J14 -> -3.30164176 | AB6: =Supply!K14 -> -2.843175785 | AC6: =Supply!L14 -> -2.449339075 | AD6: =Supply!M14 -> -2.109566759 | AE6: =Supply!N14 -> -1.815472057
C7: Role: | E7: Client Service Representative | T7: Expected Attrition | V7: =Supply!E15 -> -38.25 | W7: =Supply!F15 -> -33.0437925 | X7: =Supply!G15 -> -28.30266915 | Y7: =Supply!H15 -> -24.27774657 | Z7: =Supply!I15 -> -20.85749763 | AA7: =Supply!J15 -> -17.94370522 | AB7: =Supply!K15 -> -15.45204231 | AC7: =Supply!L15 -> -13.31162541 | AD7: =Supply!M15 -> -11.46503673 | AE7: =Supply!N15 -> -9.866695961
T8: Capacity Gain | V8: =Supply!E16 -> 3.63834 | W8: =Supply!F16 -> 1.194863537 | X8: =Supply!G16 -> 1.310979635 | Y8: =Supply!H16 -> 1.382860445 | Z8: =Supply!I16 -> 1.384937843 | AA8: =Supply!J16 -> 1.312043725 | AB8: =Supply!K16 -> 1.171882889 | AC8: =Supply!L16 -> 0.9882550703 | AD8: =Supply!M16 -> 0.7878773242 | AE8: =Supply!N16 -> 0.5991057788
C9: Attrition Rate | E9: 0.125 | T9: Total Supply | U9: =SUM(U5:U8) -> 306 | V9: =SUM(V5:V8) -> 264.35034 | W9: =SUM(W5:W8) -> 226.4213532 | X9: =SUM(X5:X8) -> 194.2219726 | Y9: 166.8599811 | Z9: 143.5496417 | AA9: 123.6163385 | AB9: 106.4930033 | AC9: 91.72029385 | AD9: 78.93356769 | AE9: 67.85050545
C10: Retirement Rate | E10: 0.023 | T10: Growth Driver 1 | V10: =Demand!E7 -> 6.12 | W10: =Demand!F7 -> 6.55001398 | X10: =Demand!G7 -> 5.610217974 | Y10: =Demand!H7 -> 4.812388876 | Z10: =Demand!I7 -> 4.134419531 | AA10: =Demand!J7 -> 3.556841123 | AB10: =Demand!K7 -> 3.062938164 | AC10: =Demand!L7 -> 2.63865997 | AD10: =Demand!M7 -> 2.272625059 | AE10: =Demand!N7 -> 1.955798399
T11: Growth Driver 2 | V11: =Demand!E8 -> 12.24 | W11: =Demand!F8 -> 10.5740136 | X11: =Demand!G8 -> 9.056854129 | Y11: =Demand!H8 -> 7.768878903 | Z11: =Demand!I8 -> 6.674399243 | AA11: =Demand!J8 -> 5.741985669 | AB11: =Demand!K8 -> 4.944653539 | AC11: =Demand!L8 -> 4.259720131 | AD11: =Demand!M8 -> 3.668811754 | AE11: =Demand!N8 -> 3.157342708
C12: Faethm Data | H12: Year 1 | I12: Year 2 | J12: Year 3 | K12: Year 4 | L12: Year 5 | M12: Year 6 | N12: Year 7 | O12: Year 8 | P12: Year 9 | Q12: Year 10 | T12: Growth Driver 3 | V12: =Demand!E9 -> 6.804 | W12: =Demand!F9 -> 5.87790756 | X12: =Demand!G9 -> 5.034545383 | Y12: =Demand!H9 -> 4.318582684 | Z12: =Demand!I9 -> 3.710180756 | AA12: =Demand!J9 -> 3.191868504 | AB12: =Demand!K9 -> 2.748645644 | AC12: =Demand!L9 -> 2.367903249 | AD12: =Demand!M9 -> 2.03942771 | AE12: =Demand!N9 -> 1.755111093
E13: Automation | H13: 0.202 | I13: 0.256 | J13: 0.316 | K13: 0.377 | L13: 0.435 | M13: 0.487 | N13: 0.531 | O13: 0.566 | P13: 0.594 | Q13: 0.616 | T13: Faethm Automation | V13: =Demand!E10 -> -61.812 | W13: =Demand!F10 -> -14.27491836 | X13: =Demand!G10 -> -13.58528119 | Y13: =Demand!H10 -> -11.84754033 | Z13: =Demand!I10 -> -9.677878903 | AA13: =Demand!J10 -> -7.46458137 | AB13: =Demand!K10 -> -5.439118893 | AC13: =Demand!L10 -> -3.727255114 | AD13: =Demand!M10 -> -2.568168228 | AE13: =Demand!N10 -> -1.736538489
E14: Capacity Gain | H14: 0.01189 | I14: 0.01641 | J14: 0.0222 | K14: 0.02932 | L14: 0.03762 | M14: 0.04676 | N14: 0.05624 | O14: 0.06552 | P14: 0.07411 | Q14: 0.0817 | T14: Total Demand | U14: =SUM(U9:U13) -> 306 | V14: =U14+SUM(V10:V13) -> 269.352 | W14: =V14+SUM(W10:W13) -> 278.0790168 | X14: =W14+SUM(X10:X13) -> 284.1953531 | Y14: 289.2476632 | Z14: 294.0887838 | AA14: 299.1148978 | AB14: 304.4320162 | AC14: 309.9710445 | AD14: 315.3837407 | AE14: 320.5154545
T15: Gap | V15: =V9-V14 -> -5.00166 | W15: -51.65766356 | X15: -89.9733805 | Y15: -122.3876821 | Z15: -150.5391421 | AA15: -175.4985593 | AB15: -197.9390129 | AC15: -218.2507506 | AD15: -236.4501731 | AE15: -252.664949
F16: FTE
C17: Bus Unit 1: | E17: Banking | F17: 140.6
E18: Growth Driver #1 | H18: 0.02 | I18: 0.02 | J18: 0.02 | K18: 0.02 | L18: 0.02 | M18: 0.02 | N18: 0.02 | O18: 0.02 | P18: 0.02 | Q18: 0.02
E19: Growth Driver #2 | H19: 0.04 | I19: 0.04 | J19: 0.04 | K19: 0.04 | L19: 0.04 | M19: 0.04 | N19: 0.04 | O19: 0.04 | P19: 0.04 | Q19: 0.04
E20: Growth Driver #3 | H20: 0.03 | I20: 0.03 | J20: 0.03 | K20: 0.03 | L20: 0.03 | M20: 0.03 | N20: 0.03 | O20: 0.03 | P20: 0.03 | Q20: 0.03
C22: Bus Unit 2: | E22: Consulting Services | F22: 67.5
E23: Growth Driver #1 | H23: 0.02 | I23: 0.02 | J23: 0.02 | K23: 0.02 | L23: 0.02 | M23: 0.02 | N23: 0.02 | O23: 0.02 | P23: 0.02 | Q23: 0.02
E24: Growth Driver #2 | H24: 0.04 | I24: 0.04 | J24: 0.04 | K24: 0.04 | L24: 0.04 | M24: 0.04 | N24: 0.04 | O24: 0.04 | P24: 0.04 | Q24: 0.04
E25: Growth Driver #3 | H25: 0.01 | I25: 0.01 | J25: 0.01 | K25: 0.01 | L25: 0.01 | M25: 0.01 | N25: 0.01 | O25: 0.01 | P25: 0.01 | Q25: 0.01
C27: Bus Unit 3: | E27: Retail Banking | F27: 39.2
E28: Growth Driver #1 | H28: 0.02 | I28: 0.02 | J28: 0.02 | K28: 0.02 | L28: 0.02 | M28: 0.02 | N28: 0.02 | O28: 0.02 | P28: 0.02 | Q28: 0.02
E29: Growth Driver #2 | H29: 0.04 | I29: 0.04 | J29: 0.04 | K29: 0.04 | L29: 0.04 | M29: 0.04 | N29: 0.04 | O29: 0.04 | P29: 0.04 | Q29: 0.04
E30: Growth Driver #3 | H30: 0.02 | I30: 0.02 | J30: 0.02 | K30: 0.02 | L30: 0.02 | M30: 0.02 | N30: 0.02 | O30: 0.02 | P30: 0.02 | Q30: 0.02
C32: Bus Unit 4: | E32: Financial Services | F32: 45.2
E33: Growth Driver #1 | H33: 0.02 | I33: 0.02 | J33: 0.02 | K33: 0.02 | L33: 0.02 | M33: 0.02 | N33: 0.02 | O33: 0.02 | P33: 0.02 | Q33: 0.02
E34: Growth Driver #2 | H34: 0.04 | I34: 0.04 | J34: 0.04 | K34: 0.04 | L34: 0.04 | M34: 0.04 | N34: 0.04 | O34: 0.04 | P34: 0.04 | Q34: 0.04
E35: Growth Driver #3 | H35: 0.01 | I35: 0.01 | J35: 0.01 | K35: 0.01 | L35: 0.01 | M35: 0.01 | N35: 0.01 | O35: 0.01 | P35: 0.01 | Q35: 0.01
C37: Bus Unit 5: | E37: Insurance | F37: 13.5
E38: Growth Driver #1 | H38: 0.02 | I38: 0.02 | J38: 0.02 | K38: 0.02 | L38: 0.02 | M38: 0.02 | N38: 0.02 | O38: 0.02 | P38: 0.02 | Q38: 0.02
E39: Growth Driver #2 | H39: 0.04 | I39: 0.04 | J39: 0.04 | K39: 0.04 | L39: 0.04 | M39: 0.04 | N39: 0.04 | O39: 0.04 | P39: 0.04 | Q39: 0.04
E40: Growth Driver #3 | H40: 0.05 | I40: 0.05 | J40: 0.05 | K40: 0.05 | L40: 0.05 | M40: 0.05 | N40: 0.05 | O40: 0.05 | P40: 0.05 | Q40: 0.05
C42: TOTAL | F42: =SUM(F17:F37) -> 306

Sheet Summary Output by BU
B2: Scenario 1 - Automation and Augmentation - All Business Units
B5: ='Summary Output'!E17 -> Banking | C5: Current | D5: =Supply!E12 -> Year 1 | E5: =Supply!F12 -> Year 2 | F5: =Supply!G12 -> Year 3 | G5: =Supply!H12 -> Year 4 | H5: =Supply!I12 -> Year 5 | I5: =Supply!J12 -> Year 6 | J5: =Supply!K12 -> Year 7 | K5: =Supply!L12 -> Year 8 | L5: =Supply!M12 -> Year 9 | M5: =Supply!N12 -> Year 10
B6: FTE affected by attrition | C6: ='Summary Output'!F17 -> 140.6 | D6: =C10 -> 140.6 | E6: =D10 -> 121.462934 | F6: =E10 -> 104.0354322 | G6: 89.24055341 | H6: 76.66834425 | I6: 65.95777656 | J6: 56.7988797 | K6: 48.93109889 | L6: 42.14337685 | M6: 36.26816868
B7: Predicted Retirement | D7: =Supply!E21 -> -3.2338 | E7: =Supply!F21 -> -2.793647482 | F7: =Supply!G21 -> -2.392814941 | G7: =Supply!H21 -> -2.052532728 | H7: =Supply!I21 -> -1.763371918 | I7: =Supply!J21 -> -1.517028861 | J7: =Supply!K21 -> -1.306374233 | K7: =Supply!L21 -> -1.125415274 | L7: =Supply!M21 -> -0.9692976675 | M7: =Supply!N21 -> -0.8341678797
B8: Expected Attrition | D8: =Supply!E22 -> -17.575 | E8: =Supply!F22 -> -15.18286675 | F8: =Supply!G22 -> -13.00442903 | G8: =Supply!H22 -> -11.15506918 | H8: =Supply!I22 -> -9.583543031 | I8: =Supply!J22 -> -8.24472207 | J8: =Supply!K22 -> -7.099859963 | K8: =Supply!L22 -> -6.116387361 | L8: =Supply!M22 -> -5.267922106 | M8: =Supply!N22 -> -4.533521085
B9: Capacity Gain | D9: =Supply!E23 -> 1.671734 | E9: =Supply!F23 -> 0.5490124617 | F9: =Supply!G23 -> 0.6023651526 | G9: =Supply!H23 -> 0.6353927403 | H9: =Supply!I23 -> 0.6363472573 | I9: =Supply!J23 -> 0.6028540777 | J9: =Supply!K23 -> 0.5384533796 | K9: =Supply!L23 -> 0.4540805977 | L9: =Supply!M23 -> 0.3620116071 | M9: =Supply!N23 -> 0.2752754003
B10: Total Supply | C10: =SUM(C6:C9) -> 140.6 | D10: =SUM(D6:D9) -> 121.462934 | E10: =SUM(E6:E9) -> 104.0354322 | F10: =SUM(F6:F9) -> 89.24055341 | G10: 76.66834425 | H10: 65.95777656 | I10: 56.7988797 | J10: 48.93109889 | K10: 42.14337685 | L10: 36.26816868 | M10: 31.17575512
B11: Growth Driver 1 | D11: =Demand!E32 -> 2.812 | E11: =Demand!F32 -> 2.42925868 | F11: =Demand!G32 -> 2.080708645 | G11: =Demand!H32 -> 1.784811068 | H11: =Demand!I32 -> 1.533366885 | I11: =Demand!J32 -> 1.319155531 | J11: =Demand!K32 -> 1.135977594 | K11: =Demand!L32 -> 0.9786219777 | L11: =Demand!M32 -> 0.842867537 | M11: =Demand!N32 -> 0.7253633737
B12: Growth Driver 2 | D12: =Demand!E48 -> 5.624 | E12: =Demand!F48 -> 4.85851736 | F12: =Demand!G48 -> 4.161417289 | G12: =Demand!H48 -> 3.569622136 | H12: =Demand!I48 -> 3.06673377 | I12: =Demand!J48 -> 2.638311062 | J12: =Demand!K48 -> 2.271955188 | K12: =Demand!L48 -> 1.957243955 | L12: =Demand!M48 -> 1.685735074 | M12: =Demand!N48 -> 1.450726747
B13: Growth Driver 3 | D13: =Demand!E64 -> 4.218 | E13: =Demand!F64 -> 3.64388802 | F13: =Demand!G64 -> 3.121062967 | G13: =Demand!H64 -> 2.677216602 | H13: =Demand!I64 -> 2.300050327 | I13: =Demand!J64 -> 1.978733297 | J13: =Demand!K64 -> 1.703966391 | K13: =Demand!L64 -> 1.467932967 | L13: =Demand!M64 -> 1.264301305 | M13: =Demand!N64 -> 1.08804506
B14: Faethm Automation | D14: =Demand!E16 -> -28.4012 | E14: =Demand!F16 -> -6.558998436 | F14: =Demand!G16 -> -6.242125934 | G14: =Demand!H16 -> -5.443673758 | H14: =Demand!I16 -> -4.446763966 | I14: =Demand!J16 -> -3.429804381 | J14: =Demand!K16 -> -2.499150707 | K14: =Demand!L16 -> -1.712588461 | L14: =Demand!M16 -> -1.180014552 | M14: =Demand!N16 -> -0.797899711
B15: Total Demand | C15: =SUM(C10:C14) -> 140.6 | D15: =C15+SUM(D11:D14) -> 124.8528 | E15: =D15+SUM(E11:E14) -> 129.2254656 | F15: 132.3465286 | G15: 134.9345046 | H15: 137.3878917 | I15: 139.8942872 | J15: 142.5070356 | K15: 145.1982461 | L15: 147.8111354 | M15: 150.2773709
B16: Gap | C16: =C10-C15 -> 0 | D16: -3.389866 | E16: -25.19003339 | F16: -43.10597518 | G16: -58.26616039 | H16: -71.4301151 | I16: -83.09540746 | J16: -93.57593674 | K16: -103.0548692 | L16: -111.5429668 | M16: -119.1016158
B19: ='Summary Output'!E22 -> Consulting Services | C19: =$C$5 -> Current | D19: =$D$5 -> Year 1 | E19: =E$5 -> Year 2 | F19: =$F$5 -> Year 3 | G19: =$G$5 -> Year 4 | H19: =$H$5 -> Year 5 | I19: =$I$5 -> Year 6 | J19: =$J$5 -> Year 7 | K19: =$K$5 -> Year 8 | L19: =$L$5 -> Year 9 | M19: =$M$5 -> Year 10
B20: FTE affected by attrition | C20: ='Summary Output'!F22 -> 67.5 | D20: =C24 -> 67.5 | E20: =D24 -> 58.312575 | F20: =E24 -> 49.94588674 | G20: 42.84308219 | H20: 36.80734877 | I20: 31.66536214 | J20: 27.26830996 | K20: 23.49110366 | L20: 20.23241776 | M20: 17.4118164
B21: Predicted Retirement | D21: =Supply!E28 -> -1.5525 | E21: =Supply!F28 -> -1.341189225 | F21: =Supply!G28 -> -1.148755395 | G21: =Supply!H28 -> -0.9853908903 | H21: =Supply!I28 -> -0.8465690217 | I21: =Supply!J28 -> -0.7283033293 | J21: =Supply!K28 -> -0.627171129 | K21: =Supply!L28 -> -0.5402953842 | L21: =Supply!M28 -> -0.4653456085 | M21: =Supply!N28 -> -0.4004717772
B22: Expected Attrition | D22: =Supply!E29 -> -8.4375 | E22: =Supply!F29 -> -7.289071875 | F22: =Supply!G29 -> -6.243235842 | G22: =Supply!H29 -> -5.355385273 | H22: =Supply!I29 -> -4.600918596 | I22: =Supply!J29 -> -3.958170268 | J22: =Supply!K29 -> -3.408538745 | K22: =Supply!L29 -> -2.936387958 | L22: =Supply!M29 -> -2.52905222 | M22: =Supply!N29 -> -2.17647705
B23: Capacity Gain | D23: =Supply!E30 -> 0.802575 | E23: =Supply!F30 -> 0.263572839 | F23: =Supply!G30 -> 0.2891866842 | G23: =Supply!H30 -> 0.3050427452 | H23: =Supply!I30 -> 0.3055009948 | I23: =Supply!J30 -> 0.28942141 | J23: =Supply!K30 -> 0.2585035784 | K23: =Supply!L30 -> 0.217997442 | L23: =Supply!M30 -> 0.1737964686 | M23: =Supply!N30 -> 0.1321556865
B24: Total Supply | C24: =SUM(C20:C23) -> 67.5 | D24: =SUM(D20:D23) -> 58.312575 | E24: =SUM(E20:E23) -> 49.94588674 | F24: =SUM(F20:F23) -> 42.84308219 | G24: =SUM(G20:G23) -> 36.80734877 | H24: =SUM(H20:H23) -> 31.66536214 | I24: =SUM(I20:I23) -> 27.26830996 | J24: =SUM(J20:J23) -> 23.49110366 | K24: =SUM(K20:K23) -> 20.23241776 | L24: =SUM(L20:L23) -> 17.4118164 | M24: =SUM(M20:M23) -> 14.96702326
B25: Growth Driver 1 | D25: =Demand!E33 -> 1.35 | E25: =Demand!F33 -> 2.42925868 | F25: =Demand!G33 -> 2.080708645 | G25: =Demand!H33 -> 1.784811068 | H25: =Demand!I33 -> 1.533366885 | I25: =Demand!J33 -> 1.319155531 | J25: =Demand!K33 -> 1.135977594 | K25: =Demand!L33 -> 0.9786219777 | L25: =Demand!M33 -> 0.842867537 | M25: =Demand!N33 -> 0.7253633737
B26: Growth Driver 2 | D26: =Demand!E49 -> 2.7 | E26: =Demand!F49 -> 2.332503 | F26: =Demand!G49 -> 1.99783547 | G26: =Demand!H49 -> 1.713723287 | H26: =Demand!I49 -> 1.472293951 | I26: =Demand!J49 -> 1.266614486 | J26: =Demand!K49 -> 1.090732398 | K26: =Demand!L49 -> 0.9396441465 | L26: =Demand!M49 -> 0.8092967105 | M26: =Demand!N49 -> 0.6964726561
B27: Growth Driver 3 | D27: =Demand!E65 -> 0.675 | E27: =Demand!F65 -> 0.58312575 | F27: =Demand!G65 -> 0.4994588674 | G27: =Demand!H65 -> 0.4284308219 | H27: =Demand!I65 -> 0.3680734877 | I27: =Demand!J65 -> 0.3166536214 | J27: =Demand!K65 -> 0.2726830996 | K27: =Demand!L65 -> 0.2349110366 | L27: =Demand!M65 -> 0.2023241776 | M27: =Demand!N65 -> 0.174118164
B28: Faethm Automation | D28: =Demand!E17 -> -13.635 | E28: =Demand!F17 -> -3.14887905 | F28: =Demand!G17 -> -2.996753204 | G28: =Demand!H17 -> -2.613428013 | H28: =Demand!I17 -> -2.134826229 | I28: =Demand!J17 -> -1.646598832 | J28: =Demand!K17 -> -1.199805638 | K28: =Demand!L17 -> -0.8221886282 | L28: =Demand!M17 -> -0.5665076973 | M28: =Demand!N17 -> -0.3830599608
B29: Total Demand | C29: =SUM(C24:C28) -> 67.5 | D29: =C29+SUM(D25:D28) -> 58.59 | E29: =D29+SUM(E25:E28) -> 60.78600838 | F29: =E29+SUM(F25:F28) -> 62.36725816 | G29: =F29+SUM(G25:G28) -> 63.68079532 | H29: =G29+SUM(H25:H28) -> 64.91970342 | I29: =H29+SUM(I25:I28) -> 66.17552822 | J29: =I29+SUM(J25:J28) -> 67.47511568 | K29: =J29+SUM(K25:K28) -> 68.80610421 | L29: =K29+SUM(L25:L28) -> 70.09408494 | M29: =L29+SUM(M25:M28) -> 71.30697917
B30: Gap | C30: =C24-C29 -> 0 | D30: -0.277425 | E30: -10.84012164 | F30: -19.52417597 | G30: -26.87344655 | H30: -33.25434127 | I30: -38.90721827 | J30: -43.98401201 | K30: -48.57368645 | L30: -52.68226854 | M30: -56.33995591
B33: ='Summary Output'!E27 -> Retail Banking | C33: =$C$5 -> Current | D33: =$D$5 -> Year 1 | E33: =E$5 -> Year 2 | F33: =$F$5 -> Year 3 | G33: =$G$5 -> Year 4 | H33: =$H$5 -> Year 5 | I33: =$I$5 -> Year 6 | J33: =$J$5 -> Year 7 | K33: =$K$5 -> Year 8 | L33: =$L$5 -> Year 9 | M33: =$M$5 -> Year 10
B34: FTE affected by attrition | C34: ='Summary Output'!F27 -> 39.2 | D34: =C38 -> 39.2 | E34: =D38 -> 33.864488 | F34: =E38 -> 29.00561126 | G34: 24.88072328 | H34: 21.37552699 | I34: 18.38936587 | J34: 15.83581852 | K34: 13.64224094 | L34: 11.74978928 | M34: 10.11175115
B35: Predicted Retirement | D35: =Supply!E35 -> -0.9016 | E35: =Supply!F35 -> -0.778883224 | F35: =Supply!G35 -> -0.667129059 | G35: =Supply!H35 -> -0.5722566355 | H35: =Supply!I35 -> -0.4916371207 | I35: =Supply!J35 -> -0.422955415 | J35: =Supply!K35 -> -0.364223826 | K35: =Supply!L35 -> -0.3137715417 | L35: =Supply!M35 -> -0.2702451534 | M35: =Supply!N35 -> -0.2325702766
B36: Expected Attrition | D36: =Supply!E36 -> -4.9 | E36: =Supply!F36 -> -4.233061 | F36: =Supply!G36 -> -3.625701408 | G36: =Supply!H36 -> -3.110090411 | H36: =Supply!I36 -> -2.671940873 | I36: =Supply!J36 -> -2.298670733 | J36: =Supply!K36 -> -1.979477315 | K36: =Supply!L36 -> -1.705280118 | L36: =Supply!M36 -> -1.46872366 | M36: =Supply!N36 -> -1.263968894
B37: Capacity Gain | D37: =Supply!E37 -> 0.466088 | E37: =Supply!F37 -> 0.1530674858 | F37: =Supply!G37 -> 0.1679424892 | G37: =Supply!H37 -> 0.1771507498 | H37: =Supply!I37 -> 0.177416874 | I37: =Supply!J37 -> 0.168078804 | J37: =Supply!K37 -> 0.1501235596 | K37: =Supply!L37 -> 0.1265999959 | L37: =Supply!M37 -> 0.1009306899 | M37: =Supply!N37 -> 0.07674819127
B38: Total Supply | C38: =SUM(C34:C37) -> 39.2 | D38: =SUM(D34:D37) -> 33.864488 | E38: =SUM(E34:E37) -> 29.00561126 | F38: =SUM(F34:F37) -> 24.88072328 | G38: =SUM(G34:G37) -> 21.37552699 | H38: =SUM(H34:H37) -> 18.38936587 | I38: =SUM(I34:I37) -> 15.83581852 | J38: =SUM(J34:J37) -> 13.64224094 | K38: =SUM(K34:K37) -> 11.74978928 | L38: =SUM(L34:L37) -> 10.11175115 | M38: =SUM(M34:M37) -> 8.691960175
B39: Growth Driver 1 | D39: =Demand!E34 -> 0.784 | E39: =Demand!F34 -> 0.67728976 | F39: =Demand!G34 -> 0.5801122252 | G39: =Demand!H34 -> 0.4976144657 | H39: =Demand!I34 -> 0.4275105398 | I39: =Demand!J34 -> 0.3677873174 | J39: =Demand!K34 -> 0.3167163705 | K39: =Demand!L34 -> 0.2728448188 | L39: =Demand!M34 -> 0.2349957856 | M39: =Demand!N34 -> 0.2022350231
B40: Growth Driver 2 | D40: =Demand!E50 -> 1.568 | E40: =Demand!F50 -> 1.35457952 | F40: =Demand!G50 -> 1.16022445 | G40: =Demand!H50 -> 0.9952289314 | H40: =Demand!I50 -> 0.8550210795 | I40: =Demand!J50 -> 0.7355746347 | J40: =Demand!K50 -> 0.6334327409 | K40: =Demand!L50 -> 0.5456896377 | L40: =Demand!M50 -> 0.4699915711 | M40: =Demand!N50 -> 0.4044700462
B41: Growth Driver 3 | D41: =Demand!E66 -> 0.784 | E41: =Demand!F66 -> 0.67728976 | F41: =Demand!G66 -> 0.5801122252 | G41: =Demand!H66 -> 0.4976144657 | H41: =Demand!I66 -> 0.4275105398 | I41: =Demand!J66 -> 0.3677873174 | J41: =Demand!K66 -> 0.3167163705 | K41: =Demand!L66 -> 0.2728448188 | L41: =Demand!M66 -> 0.2349957856 | M41: =Demand!N66 -> 0.2022350231
B42: Faethm Automation | D42: =Demand!E18 -> -7.9184 | E42: =Demand!F18 -> -1.828682352 | F42: =Demand!G18 -> -1.740336676 | G42: =Demand!H18 -> -1.51772412 | H42: =Demand!I18 -> -1.239780565 | I42: =Demand!J18 -> -0.9562470251 | J42: =Demand!K18 -> -0.696776015 | K42: =Demand!L18 -> -0.477478433 | L42: =Demand!M18 -> -0.3289940998 | M42: =Demand!N18 -> -0.2224585254
B43: Total Demand | C43: =SUM(C38:C42) -> 39.2 | D43: =C43+SUM(D39:D42) -> 34.4176 | E43: =D43+SUM(E39:E42) -> 35.29807669 | F43: =E43+SUM(F39:F42) -> 35.87818891 | G43: =F43+SUM(G39:G42) -> 36.35092266 | H43: =G43+SUM(H39:H42) -> 36.82118425 | I43: =H43+SUM(I39:I42) -> 37.33608649 | J43: =I43+SUM(J39:J42) -> 37.90617596 | K43: =J43+SUM(K39:K42) -> 38.5200768 | L43: =K43+SUM(L39:L42) -> 39.13106585 | M43: =L43+SUM(M39:M42) -> 39.71754741
B44: Gap | C44: =C38-C43 -> 0 | D44: -0.553112 | E44: -6.292465426 | F44: -10.99746563 | G44: -14.97539567 | H44: -18.43181838 | I44: -21.50026797 | J44: -24.26393502 | K44: -26.77028752 | L44: -29.01931469 | M44: -31.02558724
B47: ='Summary Output'!E32 -> Financial Services | C47: =$C$5 -> Current | D47: =$D$5 -> Year 1 | E47: =E$5 -> Year 2 | F47: =$F$5 -> Year 3 | G47: =$G$5 -> Year 4 | H47: =$H$5 -> Year 5 | I47: =$I$5 -> Year 6 | J47: =$J$5 -> Year 7 | K47: =$K$5 -> Year 8 | L47: =$L$5 -> Year 9 | M47: =$M$5 -> Year 10
B48: FTE affected by attrition | C48: ='Summary Output'!F32 -> 45.2 | D48: =C52 -> 45.2 | E48: =D52 -> 39.047828 | F48: =E52 -> 33.44524564 | G48: 28.68899726 | H48: 24.64729132 | I48: 21.20406473 | J48: 18.2596683 | K48: 15.73033904 | L48: 13.54822641 | M48: 11.65946817
B49: Predicted Retirement | D49: =Supply!E42 -> -1.0396 | E49: =Supply!F42 -> -0.898100044 | F49: =Supply!G42 -> -0.7692406497 | G49: =Supply!H42 -> -0.6598469369 | H49: =Supply!I42 -> -0.5668877004 | I49: =Supply!J42 -> -0.4876934887 | J49: =Supply!K42 -> -0.4199723708 | K49: =Supply!L42 -> -0.361797798 | L49: =Supply!M42 -> -0.3116092075 | M49: =Supply!N42 -> -0.2681677679
B50: Expected Attrition | D50: =Supply!E43 -> -5.65 | E50: =Supply!F43 -> -4.8809785 | F50: =Supply!G43 -> -4.180655705 | G50: =Supply!H43 -> -3.586124657 | H50: =Supply!I43 -> -3.080911415 | I50: =Supply!J43 -> -2.650508091 | J50: =Supply!K43 -> -2.282458537 | K50: =Supply!L43 -> -1.966292381 | L50: =Supply!M43 -> -1.693528302 | M50: =Supply!N43 -> -1.457433521
B51: Capacity Gain | D51: =Supply!E44 -> 0.537428 | E51: =Supply!F44 -> 0.1764961826 | F51: =Supply!G44 -> 0.1936479722 | G51: =Supply!H44 -> 0.2042656605 | H51: =Supply!I44 -> 0.204572518 | I51: =Supply!J44 -> 0.1938051516 | J51: =Supply!K44 -> 0.1731016555 | K51: =Supply!L44 -> 0.1459775463 | L51: =Supply!M44 -> 0.1163792649 | M51: =Supply!N44 -> 0.0884953634
B52: Total Supply | C52: =SUM(C48:C51) -> 45.2 | D52: =SUM(D48:D51) -> 39.047828 | E52: =SUM(E48:E51) -> 33.44524564 | F52: =SUM(F48:F51) -> 28.68899726 | G52: =SUM(G48:G51) -> 24.64729132 | H52: =SUM(H48:H51) -> 21.20406473 | I52: =SUM(I48:I51) -> 18.2596683 | J52: =SUM(J48:J51) -> 15.73033904 | K52: =SUM(K48:K51) -> 13.54822641 | L52: =SUM(L48:L51) -> 11.65946817 | M52: =SUM(M48:M51) -> 10.02236224
B53: Growth Driver 1 | D53: =Demand!E35 -> 0.904 | E53: =Demand!F35 -> 0.78095656 | F53: =Demand!G35 -> 0.6689049128 | G53: =Demand!H35 -> 0.5737799451 | H53: =Demand!I35 -> 0.4929458265 | I53: =Demand!J35 -> 0.4240812945 | J53: =Demand!K35 -> 0.3651933659 | K53: =Demand!L35 -> 0.3146067809 | L53: =Demand!M35 -> 0.2709645282 | M53: =Demand!N35 -> 0.2331893634
B54: Growth Driver 2 | D54: =Demand!E51 -> 1.808 | E54: =Demand!F51 -> 1.56191312 | F54: =Demand!G51 -> 1.337809826 | G54: =Demand!H51 -> 1.14755989 | H54: =Demand!I51 -> 0.9858916529 | I54: =Demand!J51 -> 0.848162589 | J54: =Demand!K51 -> 0.7303867319 | K54: =Demand!L51 -> 0.6292135618 | L54: =Demand!M51 -> 0.5419290565 | M54: =Demand!N51 -> 0.4663787267
B55: Growth Driver 3 | D55: =Demand!E67 -> 0.452 | E55: =Demand!F67 -> 0.39047828 | F55: =Demand!G67 -> 0.3344524564 | G55: =Demand!H67 -> 0.2868899726 | H55: =Demand!I67 -> 0.2464729132 | I55: =Demand!J67 -> 0.2120406473 | J55: =Demand!K67 -> 0.182596683 | K55: =Demand!L67 -> 0.1573033904 | L55: =Demand!M67 -> 0.1354822641 | M55: =Demand!N67 -> 0.1165946817
B56: Faethm Automation | D56: =Demand!E19 -> -9.1304 | E56: =Demand!F19 -> -2.108582712 | F56: =Demand!G19 -> -2.006714738 | G56: =Demand!H19 -> -1.750028833 | H56: =Demand!I19 -> -1.429542897 | I56: =Demand!J19 -> -1.102611366 | J56: =Demand!K19 -> -0.8034254051 | K56: =Demand!L19 -> -0.5505618666 | L56: =Demand!M19 -> -0.3793503395 | M56: =Demand!N19 -> -0.2565082997
B57: Total Demand | C57: =SUM(C52:C56) -> 45.2 | D57: =C57+SUM(D53:D56) -> 39.2336 | E57: =D57+SUM(E53:E56) -> 39.85836525 | F57: =E57+SUM(F53:F56) -> 40.1928177 | G57: =F57+SUM(G53:G56) -> 40.45101868 | H57: =G57+SUM(H53:H56) -> 40.74678618 | I57: =H57+SUM(I53:I56) -> 41.12845934 | J57: =I57+SUM(J53:J56) -> 41.60321072 | K57: =J57+SUM(K53:K56) -> 42.15377258 | L57: =K57+SUM(L53:L56) -> 42.72279809 | M57: =L57+SUM(M53:M56) -> 43.28245256
B58: Gap | C58: =C52-C57 -> 0 | D58: -0.185772 | E58: -6.413119609 | F58: -11.50382045 | G58: -15.80372736 | H58: -19.54272145 | I58: -22.86879104 | J58: -25.87287167 | K58: -28.60554617 | L58: -31.06332992 | M58: -33.26009032
B61: ='Summary Output'!E37 -> Insurance | C61: =$C$5 -> Current | D61: =$D$5 -> Year 1 | E61: =E$5 -> Year 2 | F61: =$F$5 -> Year 3 | G61: =$G$5 -> Year 4 | H61: =$H$5 -> Year 5 | I61: =$I$5 -> Year 6 | J61: =$J$5 -> Year 7 | K61: =$K$5 -> Year 8 | L61: =$L$5 -> Year 9 | M61: =$M$5 -> Year 10
B62: FTE affected by attrition | C62: ='Summary Output'!F37 -> 13.5 | D62: =C66 -> 13.5 | E62: =D66 -> 11.662515 | F62: =E66 -> 9.989177348 | G62: 8.568616437 | H62: 7.361469754 | I62: 6.333072429 | J62: 5.453661991 | K62: 4.698220732 | L62: 4.046483552 | M62: 3.48236328
B63: Predicted Retirement | D63: =Supply!E49 -> -0.3105 | E63: =Supply!F49 -> -0.268237845 | F63: =Supply!G49 -> -0.229751079 | G63: =Supply!H49 -> -0.1970781781 | H63: =Supply!I49 -> -0.1693138043 | I63: =Supply!J49 -> -0.1456606659 | J63: =Supply!K49 -> -0.1254342258 | K63: =Supply!L49 -> -0.1080590768 | L63: =Supply!M49 -> -0.09306912171 | M63: =Supply!N49 -> -0.08009435545
B64: Expected Attrition | D64: =Supply!E50 -> -1.6875 | E64: =Supply!F50 -> -1.457814375 | F64: =Supply!G50 -> -1.248647168 | G64: =Supply!H50 -> -1.071077055 | H64: =Supply!I50 -> -0.9201837192 | I64: =Supply!J50 -> -0.7916340536 | J64: =Supply!K50 -> -0.6817077489 | K64: =Supply!L50 -> -0.5872775915 | L64: =Supply!M50 -> -0.5058104441 | M64: =Supply!N50 -> -0.43529541
B65: Capacity Gain | D65: =Supply!E51 -> 0.160515 | E65: =Supply!F51 -> 0.0527145678 | F65: =Supply!G51 -> 0.05783733684 | G65: =Supply!H51 -> 0.06100854903 | H65: =Supply!I51 -> 0.06110019895 | I65: =Supply!J51 -> 0.057884282 | J65: =Supply!K51 -> 0.05170071568 | K65: =Supply!L51 -> 0.0435994884 | L65: =Supply!M51 -> 0.03475929372 | M65: =Supply!N51 -> 0.0264311373
B66: Total Supply | C66: =SUM(C62:C65) -> 13.5 | D66: =SUM(D62:D65) -> 11.662515 | E66: =SUM(E62:E65) -> 9.989177348 | F66: =SUM(F62:F65) -> 8.568616437 | G66: =SUM(G62:G65) -> 7.361469754 | H66: =SUM(H62:H65) -> 6.333072429 | I66: =SUM(I62:I65) -> 5.453661991 | J66: =SUM(J62:J65) -> 4.698220732 | K66: =SUM(K62:K65) -> 4.046483552 | L66: =SUM(L62:L65) -> 3.48236328 | M66: =SUM(M62:M65) -> 2.993404652
B67: Growth Driver 1 | D67: =Demand!E36 -> 0.27 | E67: =Demand!F36 -> 0.2332503 | F67: =Demand!G36 -> 0.199783547 | G67: =Demand!H36 -> 0.1713723287 | H67: =Demand!I36 -> 0.1472293951 | I67: =Demand!J36 -> 0.1266614486 | J67: =Demand!K36 -> 0.1090732398 | K67: =Demand!L36 -> 0.09396441465 | L67: =Demand!M36 -> 0.08092967105 | M67: =Demand!N36 -> 0.06964726561
B68: Growth Driver 2 | D68: =Demand!E52 -> 0.54 | E68: =Demand!F52 -> 0.4665006 | F68: =Demand!G52 -> 0.3995670939 | G68: =Demand!H52 -> 0.3427446575 | H68: =Demand!I52 -> 0.2944587901 | I68: =Demand!J52 -> 0.2533228972 | J68: =Demand!K52 -> 0.2181464797 | K68: =Demand!L52 -> 0.1879288293 | L68: =Demand!M52 -> 0.1618593421 | M68: =Demand!N52 -> 0.1392945312
B69: Growth Driver 3 | D69: =Demand!E68 -> 0.675 | E69: =Demand!F68 -> 0.58312575 | F69: =Demand!G68 -> 0.4994588674 | G69: =Demand!H68 -> 0.4284308219 | H69: =Demand!I68 -> 0.3680734877 | I69: =Demand!J68 -> 0.3166536214 | J69: =Demand!K68 -> 0.2726830996 | K69: =Demand!L68 -> 0.2349110366 | L69: =Demand!M68 -> 0.2023241776 | M69: =Demand!N68 -> 0.174118164
B70: Faethm Automation | D70: =Demand!E20 -> -2.727 | E70: =Demand!F20 -> -0.62977581 | F70: =Demand!G20 -> -0.5993506409 | G70: =Demand!H20 -> -0.5226856027 | H70: =Demand!I20 -> -0.4269652457 | I70: =Demand!J20 -> -0.3293197663 | J70: =Demand!K20 -> -0.2399611276 | K70: =Demand!L20 -> -0.1644377256 | L70: =Demand!M20 -> -0.1133015395 | M70: =Demand!N20 -> -0.07661199217
B71: Total Demand | C71: =SUM(C66:C70) -> 13.5 | D71: =C71+SUM(D67:D70) -> 12.258 | E71: =D71+SUM(E67:E70) -> 12.91110084 | F71: =E71+SUM(F67:F70) -> 13.41055971 | G71: =F71+SUM(G67:G70) -> 13.83042191 | H71: =G71+SUM(H67:H70) -> 14.21321834 | I71: =H71+SUM(I67:I70) -> 14.58053654 | J71: =I71+SUM(J67:J70) -> 14.94047823 | K71: =J71+SUM(K67:K70) -> 15.29284479 | L71: =K71+SUM(L67:L70) -> 15.62465644 | M71: =L71+SUM(M67:M70) -> 15.93110441
B72: Gap | C72: =C66-C71 -> 0 | D72: -0.595485 | E72: -2.921923492 | F72: -4.84194327 | G72: -6.468952159 | H72: -7.880145911 | I72: -9.126874549 | J72: -10.2422575 | K72: -11.24636123 | L72: -12.14229316 | M72: -12.93769976

Sheet Supply
B2: Supply Inputs | G2: You can calculate your attrition rate clicking | H2: here
B4: =Company_Name -> Global European Bank
B5: Critical Role | D5: ='Summary Output'!E7 -> Client Service Representative
B6: Attrition Rate | E6: ='Summary Output'!E9 -> 0.125
B7: Retirement Rate | E7: ='Summary Output'!E10 -> 0.023
E9: Year 1 | F9: Year 2 | G9: Year 3 | H9: Year 4 | I9: Year 5 | J9: Year 6 | K9: Year 7 | L9: Year 8 | M9: Year 9 | N9: Year 10
B10: Faethm Capacity Gain (Cumulative) | E10: =Augmentation -> 0.01189 | F10: 0.01641 | G10: 0.0222 | H10: 0.02932 | I10: 0.03762 | J10: 0.04676 | K10: 0.05624 | L10: 0.06552 | M10: 0.07411 | N10: 0.0817
B12: =Company_Name -> Global European Bank | D12: Current | E12: Year 1 | F12: Year 2 | G12: Year 3 | H12: Year 4 | I12: Year 5 | J12: Year 6 | K12: Year 7 | L12: Year 8 | M12: Year 9 | N12: Year 10
B13: FTE affected by attrition | D13: =D20+D27+D34+D41+D48 -> 306 | E13: 306 | F13: 264.35034 | G13: 226.4213532 | H13: 194.2219726 | I13: 166.8599811 | J13: 143.5496417 | K13: 123.6163385 | L13: 106.4930033 | M13: 91.72029385 | N13: 78.93356769
B14: Predicted Retirement | E14: =-E13*'Summary Output'!$E$10 -> -7.038 | F14: =-F13*'Summary Output'!$E$10 -> -6.08005782 | G14: =-G13*'Summary Output'!$E$10 -> -5.207691124 | H14: =-H13*'Summary Output'!$E$10 -> -4.467105369 | I14: =-I13*'Summary Output'!$E$10 -> -3.837779565 | J14: =-J13*'Summary Output'!$E$10 -> -3.30164176 | K14: =-K13*'Summary Output'!$E$10 -> -2.843175785 | L14: =-L13*'Summary Output'!$E$10 -> -2.449339075 | M14: =-M13*'Summary Output'!$E$10 -> -2.109566759 | N14: =-N13*'Summary Output'!$E$10 -> -1.815472057
B15: Expected Attrition | E15: =-E13*'Summary Output'!$E$9 -> -38.25 | F15: =-F13*'Summary Output'!$E$9 -> -33.0437925 | G15: =-G13*'Summary Output'!$E$9 -> -28.30266915 | H15: =-H13*'Summary Output'!$E$9 -> -24.27774657 | I15: =-I13*'Summary Output'!$E$9 -> -20.85749763 | J15: =-J13*'Summary Output'!$E$9 -> -17.94370522 | K15: =-K13*'Summary Output'!$E$9 -> -15.45204231 | L15: =-L13*'Summary Output'!$E$9 -> -13.31162541 | M15: =-M13*'Summary Output'!$E$9 -> -11.46503673 | N15: =-N13*'Summary Output'!$E$9 -> -9.866695961
B16: Capacity Gain | E16: =E23+E30+E37+E44+E51 -> 3.63834 | F16: =F23+F30+F37+F44+F51 -> 1.194863537 | G16: 1.310979635 | H16: 1.382860445 | I16: 1.384937843 | J16: 1.312043725 | K16: 1.171882889 | L16: 0.9882550703 | M16: 0.7878773242 | N16: 0.5991057788
B17: Total supply | D17: =SUM(D13:D16) -> 306 | E17: =SUM(E13:E16) -> 264.35034 | F17: =SUM(F13:F16) -> 226.4213532 | G17: 194.2219726 | H17: 166.8599811 | I17: 143.5496417 | J17: 123.6163385 | K17: 106.4930033 | L17: 91.72029385 | M17: 78.93356769 | N17: 67.85050545
B19: ="BU 1 - " -> BU 1 - | C19: ='Summary Output'!E17 -> Banking | D19: =D12 -> Current | E19: =E12 -> Year 1 | F19: =F12 -> Year 2 | G19: Year 3 | H19: Year 4 | I19: Year 5 | J19: Year 6 | K19: Year 7 | L19: Year 8 | M19: Year 9 | N19: Year 10
B20: FTE affected by attrition | D20: ='Summary Output by BU'!C6 -> 140.6 | E20: =D24 -> 140.6 | F20: 121.462934 | G20: 104.0354322 | H20: 89.24055341 | I20: 76.66834425 | J20: 65.95777656 | K20: 56.7988797 | L20: 48.93109889 | M20: 42.14337685 | N20: 36.26816868
B21: Predicted Retirement | E21: =-E20*'Summary Output'!$E$10 -> -3.2338 | F21: =-F20*'Summary Output'!$E$10 -> -2.793647482 | G21: =-G20*'Summary Output'!$E$10 -> -2.392814941 | H21: =-H20*'Summary Output'!$E$10 -> -2.052532728 | I21: =-I20*'Summary Output'!$E$10 -> -1.763371918 | J21: =-J20*'Summary Output'!$E$10 -> -1.517028861 | K21: =-K20*'Summary Output'!$E$10 -> -1.306374233 | L21: =-L20*'Summary Output'!$E$10 -> -1.125415274 | M21: =-M20*'Summary Output'!$E$10 -> -0.9692976675 | N21: =-N20*'Summary Output'!$E$10 -> -0.8341678797
B22: Expected Attrition | E22: =-E20*'Summary Output'!$E$9 -> -17.575 | F22: =-F20*'Summary Output'!$E$9 -> -15.18286675 | G22: =-G20*'Summary Output'!$E$9 -> -13.00442903 | H22: =-H20*'Summary Output'!$E$9 -> -11.15506918 | I22: =-I20*'Summary Output'!$E$9 -> -9.583543031 | J22: =-J20*'Summary Output'!$E$9 -> -8.24472207 | K22: =-K20*'Summary Output'!$E$9 -> -7.099859963 | L22: =-L20*'Summary Output'!$E$9 -> -6.116387361 | M22: =-M20*'Summary Output'!$E$9 -> -5.267922106 | N22: =-N20*'Summary Output'!$E$9 -> -4.533521085
B23: Capacity Gain | E23: =E20*$E$10 -> 1.671734 | F23: =F20*(F10-E10) -> 0.5490124617 | G23: =G20*(G10-F10) -> 0.6023651526 | H23: =H20*(H10-G10) -> 0.6353927403 | I23: 0.6363472573 | J23: 0.6028540777 | K23: 0.5384533796 | L23: 0.4540805977 | M23: 0.3620116071 | N23: 0.2752754003
B24: Total Supply | D24: =SUM(D20:D23) -> 140.6 | E24: =SUM(E20:E23) -> 121.462934 | F24: =SUM(F20:F23) -> 104.0354322 | G24: 89.24055341 | H24: 76.66834425 | I24: 65.95777656 | J24: 56.7988797 | K24: 48.93109889 | L24: 42.14337685 | M24: 36.26816868 | N24: 31.17575512
B26: ="BU 2 - " -> BU 2 - | C26: ='Summary Output'!E22 -> Consulting Services | D26: =D12 -> Current | E26: =E12 -> Year 1 | F26: =F12 -> Year 2 | G26: Year 3 | H26: Year 4 | I26: Year 5 | J26: Year 6 | K26: Year 7 | L26: Year 8 | M26: Year 9 | N26: Year 10
B27: FTE affected by attrition | D27: ='Summary Output by BU'!C20 -> 67.5 | E27: =D31 -> 67.5 | F27: =E31 -> 58.312575 | G27: =F31 -> 49.94588674 | H27: 42.84308219 | I27: 36.80734877 | J27: 31.66536214 | K27: 27.26830996 | L27: 23.49110366 | M27: 20.23241776 | N27: 17.4118164
B28: Predicted Retirement | E28: =-E27*'Summary Output'!$E$10 -> -1.5525 | F28: =-F27*'Summary Output'!$E$10 -> -1.341189225 | G28: =-G27*'Summary Output'!$E$10 -> -1.148755395 | H28: =-H27*'Summary Output'!$E$10 -> -0.9853908903 | I28: =-I27*'Summary Output'!$E$10 -> -0.8465690217 | J28: =-J27*'Summary Output'!$E$10 -> -0.7283033293 | K28: =-K27*'Summary Output'!$E$10 -> -0.627171129 | L28: =-L27*'Summary Output'!$E$10 -> -0.5402953842 | M28: =-M27*'Summary Output'!$E$10 -> -0.4653456085 | N28: =-N27*'Summary Output'!$E$10 -> -0.4004717772
B29: Expected Attrition | E29: =-E27*'Summary Output'!$E$9 -> -8.4375 | F29: =-F27*'Summary Output'!$E$9 -> -7.289071875 | G29: =-G27*'Summary Output'!$E$9 -> -6.243235842 | H29: =-H27*'Summary Output'!$E$9 -> -5.355385273 | I29: =-I27*'Summary Output'!$E$9 -> -4.600918596 | J29: =-J27*'Summary Output'!$E$9 -> -3.958170268 | K29: =-K27*'Summary Output'!$E$9 -> -3.408538745 | L29: =-L27*'Summary Output'!$E$9 -> -2.936387958 | M29: =-M27*'Summary Output'!$E$9 -> -2.52905222 | N29: =-N27*'Summary Output'!$E$9 -> -2.17647705
B30: Capacity Gain | E30: =E27*$E$10 -> 0.802575 | F30: =F27*(F10-E10) -> 0.263572839 | G30: =G27*(G10-F10) -> 0.2891866842 | H30: 0.3050427452 | I30: 0.3055009948 | J30: 0.28942141 | K30: 0.2585035784 | L30: 0.217997442 | M30: 0.1737964686 | N30: 0.1321556865
B31: Total Supply | D31: =SUM(D27:D30) -> 67.5 | E31: =SUM(E27:E30) -> 58.312575 | F31: =SUM(F27:F30) -> 49.94588674 | G31: =SUM(G27:G30) -> 42.84308219 | H31: =SUM(H27:H30) -> 36.80734877 | I31: =SUM(I27:I30) -> 31.66536214 | J31: =SUM(J27:J30) -> 27.26830996 | K31: =SUM(K27:K30) -> 23.49110366 | L31: =SUM(L27:L30) -> 20.23241776 | M31: =SUM(M27:M30) -> 17.4118164 | N31: =SUM(N27:N30) -> 14.96702326
B33: ="BU 3 - " -> BU 3 - | C33: ='Summary Output'!E27 -> Retail Banking | D33: =D12 -> Current | E33: =E12 -> Year 1 | F33: =F12 -> Year 2 | G33: Year 3 | H33: Year 4 | I33: Year 5 | J33: Year 6 | K33: Year 7 | L33: Year 8 | M33: Year 9 | N33: Year 10
B34: FTE affected by attrition | D34: ='Summary Output'!F27 -> 39.2 | E34: =D38 -> 39.2 | F34: =E38 -> 33.864488 | G34: =F38 -> 29.00561126 | H34: 24.88072328 | I34: 21.37552699 | J34: 18.38936587 | K34: 15.83581852 | L34: 13.64224094 | M34: 11.74978928 | N34: 10.11175115
B35: Predicted Retirement | E35: =-E34*'Summary Output'!$E$10 -> -0.9016 | F35: =-F34*'Summary Output'!$E$10 -> -0.778883224 | G35: =-G34*'Summary Output'!$E$10 -> -0.667129059 | H35: =-H34*'Summary Output'!$E$10 -> -0.5722566355 | I35: =-I34*'Summary Output'!$E$10 -> -0.4916371207 | J35: =-J34*'Summary Output'!$E$10 -> -0.422955415 | K35: =-K34*'Summary Output'!$E$10 -> -0.364223826 | L35: =-L34*'Summary Output'!$E$10 -> -0.3137715417 | M35: =-M34*'Summary Output'!$E$10 -> -0.2702451534 | N35: =-N34*'Summary Output'!$E$10 -> -0.2325702766
B36: Expected Attrition | E36: =-E34*'Summary Output'!$E$9 -> -4.9 | F36: =-F34*'Summary Output'!$E$9 -> -4.233061 | G36: =-G34*'Summary Output'!$E$9 -> -3.625701408 | H36: =-H34*'Summary Output'!$E$9 -> -3.110090411 | I36: =-I34*'Summary Output'!$E$9 -> -2.671940873 | J36: =-J34*'Summary Output'!$E$9 -> -2.298670733 | K36: =-K34*'Summary Output'!$E$9 -> -1.979477315 | L36: =-L34*'Summary Output'!$E$9 -> -1.705280118 | M36: =-M34*'Summary Output'!$E$9 -> -1.46872366 | N36: =-N34*'Summary Output'!$E$9 -> -1.263968894
B37: Capacity Gain | E37: =E34*$E$10 -> 0.466088 | F37: =F34*(F10-E10) -> 0.1530674858 | G37: =G34*(G10-F10) -> 0.1679424892 | H37: 0.1771507498 | I37: 0.177416874 | J37: 0.168078804 | K37: 0.1501235596 | L37: 0.1265999959 | M37: 0.1009306899 | N37: 0.07674819127
B38: Total Supply | D38: =SUM(D34:D37) -> 39.2 | E38: =SUM(E34:E37) -> 33.864488 | F38: =SUM(F34:F37) -> 29.00561126 | G38: =SUM(G34:G37) -> 24.88072328 | H38: =SUM(H34:H37) -> 21.37552699 | I38: =SUM(I34:I37) -> 18.38936587 | J38: =SUM(J34:J37) -> 15.83581852 | K38: =SUM(K34:K37) -> 13.64224094 | L38: =SUM(L34:L37) -> 11.74978928 | M38: =SUM(M34:M37) -> 10.11175115 | N38: =SUM(N34:N37) -> 8.691960175
B40: ="BU 4 - " -> BU 4 - | C40: ='Summary Output'!E32 -> Financial Services | D40: =D12 -> Current | E40: =E12 -> Year 1 | F40: =F12 -> Year 2 | G40: Year 3 | H40: Year 4 | I40: Year 5 | J40: Year 6 | K40: Year 7 | L40: Year 8 | M40: Year 9 | N40: Year 10
B41: FTE affected by attrition | D41: ='Summary Output'!F32 -> 45.2 | E41: =D45 -> 45.2 | F41: =E45 -> 39.047828 | G41: =F45 -> 33.44524564 | H41: 28.68899726 | I41: 24.64729132 | J41: 21.20406473 | K41: 18.2596683 | L41: 15.73033904 | M41: 13.54822641 | N41: 11.65946817
B42: Predicted Retirement | E42: =-E41*'Summary Output'!$E$10 -> -1.0396 | F42: =-F41*'Summary Output'!$E$10 -> -0.898100044 | G42: =-G41*'Summary Output'!$E$10 -> -0.7692406497 | H42: =-H41*'Summary Output'!$E$10 -> -0.6598469369 | I42: =-I41*'Summary Output'!$E$10 -> -0.5668877004 | J42: =-J41*'Summary Output'!$E$10 -> -0.4876934887 | K42: =-K41*'Summary Output'!$E$10 -> -0.4199723708 | L42: =-L41*'Summary Output'!$E$10 -> -0.361797798 | M42: =-M41*'Summary Output'!$E$10 -> -0.3116092075 | N42: =-N41*'Summary Output'!$E$10 -> -0.2681677679
B43: Expected Attrition | E43: =-E41*'Summary Output'!$E$9 -> -5.65 | F43: =-F41*'Summary Output'!$E$9 -> -4.8809785 | G43: =-G41*'Summary Output'!$E$9 -> -4.180655705 | H43: =-H41*'Summary Output'!$E$9 -> -3.586124657 | I43: =-I41*'Summary Output'!$E$9 -> -3.080911415 | J43: =-J41*'Summary Output'!$E$9 -> -2.650508091 | K43: =-K41*'Summary Output'!$E$9 -> -2.282458537 | L43: =-L41*'Summary Output'!$E$9 -> -1.966292381 | M43: =-M41*'Summary Output'!$E$9 -> -1.693528302 | N43: =-N41*'Summary Output'!$E$9 -> -1.457433521
B44: Capacity Gain | E44: =E41*$E$10 -> 0.537428 | F44: =F41*(F10-E10) -> 0.1764961826 | G44: =G41*(G10-F10) -> 0.1936479722 | H44: =H41*(H10-G10) -> 0.2042656605 | I44: =I41*(I10-H10) -> 0.204572518 | J44: 0.1938051516 | K44: 0.1731016555 | L44: 0.1459775463 | M44: 0.1163792649 | N44: 0.0884953634
B45: Total supply | D45: =SUM(D41:D44) -> 45.2 | E45: =SUM(E41:E44) -> 39.047828 | F45: =SUM(F41:F44) -> 33.44524564 | G45: =SUM(G41:G44) -> 28.68899726 | H45: =SUM(H41:H44) -> 24.64729132 | I45: =SUM(I41:I44) -> 21.20406473 | J45: =SUM(J41:J44) -> 18.2596683 | K45: =SUM(K41:K44) -> 15.73033904 | L45: =SUM(L41:L44) -> 13.54822641 | M45: =SUM(M41:M44) -> 11.65946817 | N45: =SUM(N41:N44) -> 10.02236224
B47: ="BU 5 - " -> BU 5 - | C47: ='Summary Output'!E37 -> Insurance | D47: =D12 -> Current | E47: =E12 -> Year 1 | F47: =F12 -> Year 2 | G47: Year 3 | H47: Year 4 | I47: Year 5 | J47: Year 6 | K47: Year 7 | L47: Year 8 | M47: Year 9 | N47: Year 10
B48: FTE affected by attrition | D48: ='Summary Output'!F37 -> 13.5 | E48: =D52 -> 13.5 | F48: =E52 -> 11.662515 | G48: =F52 -> 9.989177348 | H48: 8.568616437 | I48: 7.361469754 | J48: 6.333072429 | K48: 5.453661991 | L48: 4.698220732 | M48: 4.046483552 | N48: 3.48236328
B49: Predicted Retirement | E49: =-E48*'Summary Output'!$E$10 -> -0.3105 | F49: =-F48*'Summary Output'!$E$10 -> -0.268237845 | G49: =-G48*'Summary Output'!$E$10 -> -0.229751079 | H49: =-H48*'Summary Output'!$E$10 -> -0.1970781781 | I49: =-I48*'Summary Output'!$E$10 -> -0.1693138043 | J49: =-J48*'Summary Output'!$E$10 -> -0.1456606659 | K49: =-K48*'Summary Output'!$E$10 -> -0.1254342258 | L49: =-L48*'Summary Output'!$E$10 -> -0.1080590768 | M49: =-M48*'Summary Output'!$E$10 -> -0.09306912171 | N49: =-N48*'Summary Output'!$E$10 -> -0.08009435545
B50: Expected Attrition | E50: =-E48*'Summary Output'!$E$9 -> -1.6875 | F50: =-F48*'Summary Output'!$E$9 -> -1.457814375 | G50: =-G48*'Summary Output'!$E$9 -> -1.248647168 | H50: =-H48*'Summary Output'!$E$9 -> -1.071077055 | I50: =-I48*'Summary Output'!$E$9 -> -0.9201837192 | J50: =-J48*'Summary Output'!$E$9 -> -0.7916340536 | K50: =-K48*'Summary Output'!$E$9 -> -0.6817077489 | L50: =-L48*'Summary Output'!$E$9 -> -0.5872775915 | M50: =-M48*'Summary Output'!$E$9 -> -0.5058104441 | N50: =-N48*'Summary Output'!$E$9 -> -0.43529541
B51: Capacity Gain | E51: =E48*$E$10 -> 0.160515 | F51: =F48*(F10-E10) -> 0.0527145678 | G51: =G48*(G10-F10) -> 0.05783733684 | H51: 0.06100854903 | I51: 0.06110019895 | J51: 0.057884282 | K51: 0.05170071568 | L51: 0.0435994884 | M51: 0.03475929372 | N51: 0.0264311373
B52: Total supply | D52: =SUM(D48:D51) -> 13.5 | E52: =SUM(E48:E51) -> 11.662515 | F52: =SUM(F48:F51) -> 9.989177348 | G52: =SUM(G48:G51) -> 8.568616437 | H52: =SUM(H48:H51) -> 7.361469754 | I52: =SUM(I48:I51) -> 6.333072429 | J52: =SUM(J48:J51) -> 5.453661991 | K52: =SUM(K48:K51) -> 4.698220732 | L52: =SUM(L48:L51) -> 4.046483552 | M52: =SUM(M48:M51) -> 3.48236328 | N52: =SUM(N48:N51) -> 2.993404652

Sheet Demand
B2: Demand Inputs
B5: =Company_Name -> Global European Bank | D5: Current | E5: =Supply!E12 -> Year 1 | F5: =Supply!F12 -> Year 2 | G5: =Supply!G12 -> Year 3 | H5: =Supply!H12 -> Year 4 | I5: =Supply!I12 -> Year 5 | J5: =Supply!J12 -> Year 6 | K5: =Supply!K12 -> Year 7 | L5: =Supply!L12 -> Year 8 | M5: =Supply!M12 -> Year 9 | N5: =Supply!N12 -> Year 10
B6: FTE affected by attrition | D6: =Supply!D13 -> 306 | E6: =D11 -> 306 | F6: =E11 -> 269.352 | G6: =F11 -> 278.0790168 | H6: 284.1953531 | I6: 289.2476632 | J6: 294.0887838 | K6: 299.1148978 | L6: 304.4320162 | M6: 309.9710445 | N6: 315.3837407
B7: Growth Driver 1 | E7: =SUM(E32:E36) -> 6.12 | F7: =SUM(F32:F36) -> 6.55001398 | G7: 5.610217974 | H7: 4.812388876 | I7: 4.134419531 | J7: 3.556841123 | K7: 3.062938164 | L7: 2.63865997 | M7: 2.272625059 | N7: 1.955798399
B8: Growth Driver 2 | E8: =SUM(E48:E52) -> 12.24 | F8: =SUM(F48:F52) -> 10.5740136 | G8: 9.056854129 | H8: 7.768878903 | I8: 6.674399243 | J8: 5.741985669 | K8: 4.944653539 | L8: 4.259720131 | M8: 3.668811754 | N8: 3.157342708
B9: Growth Driver 3 | E9: =SUM(E64:E68) -> 6.804 | F9: =SUM(F64:F68) -> 5.87790756 | G9: 5.034545383 | H9: 4.318582684 | I9: 3.710180756 | J9: 3.191868504 | K9: 2.748645644 | L9: 2.367903249 | M9: 2.03942771 | N9: 1.755111093
B10: Faethm Automation | E10: =SUM(E16:E20) -> -61.812 | F10: =SUM(F16:F20) -> -14.27491836 | G10: -13.58528119 | H10: -11.84754033 | I10: -9.677878903 | J10: -7.46458137 | K10: -5.439118893 | L10: -3.727255114 | M10: -2.568168228 | N10: -1.736538489
B11: Total Demand | D11: =SUM(D6:D10) -> 306 | E11: =SUM(E6:E10) -> 269.352 | F11: =SUM(F6:F10) -> 278.0790168 | G11: 284.1953531 | H11: 289.2476632 | I11: 294.0887838 | J11: 299.1148978 | K11: 304.4320162 | L11: 309.9710445 | M11: 315.3837407 | N11: 320.5154545
B13: Automation | E13: Year 1 | F13: Year 2 | G13: Year 3 | H13: Year 4 | I13: Year 5 | J13: Year 6 | K13: Year 7 | L13: Year 8 | M13: Year 9 | N13: Year 10
B14: Faethm Automation Rate (Cumulative) | E14: =Automation -> 0.202 | F14: 0.256 | G14: 0.316 | H14: 0.377 | I14: 0.435 | J14: 0.487 | K14: 0.531 | L14: 0.566 | M14: 0.594 | N14: 0.616
B16: BU1 | C16: ='Summary Output'!E17 -> Banking | E16: =-Supply!E20*Demand!E14 -> -28.4012 | F16: =-Supply!F20*(Demand!$F$14-$E$14) -> -6.558998436 | G16: =-Supply!G20*(Demand!G14-F14) -> -6.242125934 | H16: =-Supply!H20*(Demand!H14-G14) -> -5.443673758 | I16: =-Supply!I20*(Demand!I14-H14) -> -4.446763966 | J16: =-Supply!J20*(Demand!J14-I14) -> -3.429804381 | K16: =-Supply!K20*(Demand!K14-J14) -> -2.499150707 | L16: =-Supply!L20*(Demand!L14-K14) -> -1.712588461 | M16: =-Supply!M20*(Demand!M14-L14) -> -1.180014552 | N16: =-Supply!N20*(Demand!N14-M14) -> -0.797899711
B17: BU2 | C17: ='Summary Output'!E22 -> Consulting Services | E17: =-Supply!E27*Demand!$E$14 -> -13.635 | F17: =-Supply!F27*(Demand!F14-E14) -> -3.14887905 | G17: =-Supply!G27*(Demand!G14-F14) -> -2.996753204 | H17: =-Supply!H27*(Demand!H14-G14) -> -2.613428013 | I17: =-Supply!I27*(Demand!I14-H14) -> -2.134826229 | J17: =-Supply!J27*(Demand!J14-I14) -> -1.646598832 | K17: =-Supply!K27*(Demand!K14-J14) -> -1.199805638 | L17: =-Supply!L27*(Demand!L14-K14) -> -0.8221886282 | M17: =-Supply!M27*(Demand!M14-L14) -> -0.5665076973 | N17: =-Supply!N27*(Demand!N14-M14) -> -0.3830599608
B18: BU3 | C18: ='Summary Output'!E27 -> Retail Banking | E18: =-Supply!E34*Demand!$E$14 -> -7.9184 | F18: =-Supply!F34*(Demand!F14-E14) -> -1.828682352 | G18: =-Supply!G34*(Demand!G14-F14) -> -1.740336676 | H18: =-Supply!H34*(Demand!H14-G14) -> -1.51772412 | I18: =-Supply!I34*(Demand!I14-H14) -> -1.239780565 | J18: =-Supply!J34*(Demand!J14-I14) -> -0.9562470251 | K18: =-Supply!K34*(Demand!K14-J14) -> -0.696776015 | L18: =-Supply!L34*(Demand!L14-K14) -> -0.477478433 | M18: =-Supply!M34*(Demand!M14-L14) -> -0.3289940998 | N18: =-Supply!N34*(Demand!N14-M14) -> -0.2224585254
B19: BU4 | C19: ='Summary Output'!E32 -> Financial Services | E19: =-Supply!E41*Demand!$E$14 -> -9.1304 | F19: =-Supply!F41*(Demand!F14-E14) -> -2.108582712 | G19: =-Supply!G41*(Demand!G14-F14) -> -2.006714738 | H19: =-Supply!H41*(Demand!H14-G14) -> -1.750028833 | I19: =-Supply!I41*(Demand!I14-H14) -> -1.429542897 | J19: =-Supply!J41*(Demand!J14-I14) -> -1.102611366 | K19: =-Supply!K41*(Demand!K14-J14) -> -0.8034254051 | L19: =-Supply!L41*(Demand!L14-K14) -> -0.5505618666 | M19: =-Supply!M41*(Demand!M14-L14) -> -0.3793503395 | N19: =-Supply!N41*(Demand!N14-M14) -> -0.2565082997
B20: BU5 | C20: ='Summary Output'!E37 -> Insurance | E20: =-Supply!E48*Demand!$E$14 -> -2.727 | F20: =-Supply!F48*(Demand!F14-E14) -> -0.62977581 | G20: =-Supply!G48*(Demand!G14-F14) -> -0.5993506409 | H20: =-Supply!H48*(Demand!H14-G14) -> -0.5226856027 | I20: =-Supply!I48*(Demand!I14-H14) -> -0.4269652457 | J20: =-Supply!J48*(Demand!J14-I14) -> -0.3293197663 | K20: =-Supply!K48*(Demand!K14-J14) -> -0.2399611276 | L20: =-Supply!L48*(Demand!L14-K14) -> -0.1644377256 | M20: =-Supply!M48*(Demand!M14-L14) -> -0.1133015395 | N20: =-Supply!N48*(Demand!N14-M14) -> -0.07661199217
B22: Growth Driver #1
B24: % Change year on year | E24: Year 1 | F24: Year 2 | G24: Year 3 | H24: Year 4 | I24: Year 5 | J24: Year 6 | K24: Year 7 | L24: Year 8 | M24: Year 9 | N24: Year 10
B25: BU1 | C25: =$C$16 -> Banking | E25: =GD1_BU1 -> 0.02 | F25: 0.02 | G25: 0.02 | H25: 0.02 | I25: 0.02 | J25: 0.02 | K25: 0.02 | L25: 0.02 | M25: 0.02 | N25: 0.02
B26: BU2 | C26: =$C$17 -> Consulting Services | E26: =GD1_BU2 -> 0.02 | F26: 0.02 | G26: 0.02 | H26: 0.02 | I26: 0.02 | J26: 0.02 | K26: 0.02 | L26: 0.02 | M26: 0.02 | N26: 0.02
B27: BU3 | C27: =$C$18 -> Retail Banking | E27: =GD1_BU3 -> 0.02 | F27: 0.02 | G27: 0.02 | H27: 0.02 | I27: 0.02 | J27: 0.02 | K27: 0.02 | L27: 0.02 | M27: 0.02 | N27: 0.02
B28: BU4 | C28: =$C$19 -> Financial Services | E28: =GD1_BU4 -> 0.02 | F28: 0.02 | G28: 0.02 | H28: 0.02 | I28: 0.02 | J28: 0.02 | K28: 0.02 | L28: 0.02 | M28: 0.02 | N28: 0.02
B29: BU5 | C29: =$C$20 -> Insurance | E29: =GD1_BU5 -> 0.02 | F29: 0.02 | G29: 0.02 | H29: 0.02 | I29: 0.02 | J29: 0.02 | K29: 0.02 | L29: 0.02 | M29: 0.02 | N29: 0.02
B30: Total % Change Year on Year | E30: =SUM(E25:E29) -> 0.1 | F30: 0.1 | G30: 0.1 | H30: 0.1 | I30: 0.1 | J30: 0.1 | K30: 0.1 | L30: 0.1 | M30: 0.1 | N30: 0.1
B32: BU1 | C32: =$C$16 -> Banking | E32: =Supply!E20*Demand!E25 -> 2.812 | F32: =Supply!F20*Demand!F25 -> 2.42925868 | G32: =Supply!G20*Demand!G25 -> 2.080708645 | H32: =Supply!H20*Demand!H25 -> 1.784811068 | I32: =Supply!I20*Demand!I25 -> 1.533366885 | J32: =Supply!J20*Demand!J25 -> 1.319155531 | K32: =Supply!K20*Demand!K25 -> 1.135977594 | L32: =Supply!L20*Demand!L25 -> 0.9786219777 | M32: =Supply!M20*Demand!M25 -> 0.842867537 | N32: =Supply!N20*Demand!N25 -> 0.7253633737
B33: BU2 | C33: =$C$17 -> Consulting Services | E33: =Supply!E27*Demand!E26 -> 1.35 | F33: =Supply!F20*Demand!F26 -> 2.42925868 | G33: =Supply!G20*Demand!G26 -> 2.080708645 | H33: =Supply!H20*Demand!H26 -> 1.784811068 | I33: =Supply!I20*Demand!I26 -> 1.533366885 | J33: =Supply!J20*Demand!J26 -> 1.319155531 | K33: =Supply!K20*Demand!K26 -> 1.135977594 | L33: =Supply!L20*Demand!L26 -> 0.9786219777 | M33: =Supply!M20*Demand!M26 -> 0.842867537 | N33: =Supply!N20*Demand!N26 -> 0.7253633737
B34: BU3 | C34: =$C$18 -> Retail Banking | E34: =Supply!E34*Demand!E27 -> 0.784 | F34: =Supply!F34*Demand!F27 -> 0.67728976 | G34: =Supply!G34*Demand!G27 -> 0.5801122252 | H34: =Supply!H34*Demand!H27 -> 0.4976144657 | I34: =Supply!I34*Demand!I27 -> 0.4275105398 | J34: =Supply!J34*Demand!J27 -> 0.3677873174 | K34: =Supply!K34*Demand!K27 -> 0.3167163705 | L34: =Supply!L34*Demand!L27 -> 0.2728448188 | M34: =Supply!M34*Demand!M27 -> 0.2349957856 | N34: =Supply!N34*Demand!N27 -> 0.2022350231
B35: BU4 | C35: =$C$19 -> Financial Services | E35: =Supply!E41*Demand!E28 -> 0.904 | F35: =Supply!F41*Demand!F28 -> 0.78095656 | G35: =Supply!G41*Demand!G28 -> 0.6689049128 | H35: =Supply!H41*Demand!H28 -> 0.5737799451 | I35: =Supply!I41*Demand!I28 -> 0.4929458265 | J35: =Supply!J41*Demand!J28 -> 0.4240812945 | K35: =Supply!K41*Demand!K28 -> 0.3651933659 | L35: =Supply!L41*Demand!L28 -> 0.3146067809 | M35: =Supply!M41*Demand!M28 -> 0.2709645282 | N35: =Supply!N41*Demand!N28 -> 0.2331893634
B36: BU5 | C36: =$C$20 -> Insurance | E36: =Supply!E48*Demand!E29 -> 0.27 | F36: =Supply!F48*Demand!F29 -> 0.2332503 | G36: =Supply!G48*Demand!G29 -> 0.199783547 | H36: =Supply!H48*Demand!H29 -> 0.1713723287 | I36: =Supply!I48*Demand!I29 -> 0.1472293951 | J36: =Supply!J48*Demand!J29 -> 0.1266614486 | K36: =Supply!K48*Demand!K29 -> 0.1090732398 | L36: =Supply!L48*Demand!L29 -> 0.09396441465 | M36: =Supply!M48*Demand!M29 -> 0.08092967105 | N36: =Supply!N48*Demand!N29 -> 0.06964726561
B38: Growth Driver #2
B40: % Change year on year | E40: Year 1 | F40: Year 2 | G40: Year 3 | H40: Year 4 | I40: Year 5 | J40: Year 6 | K40: Year 7 | L40: Year 8 | M40: Year 9 | N40: Year 10
B41: BU1 | C41: =$C$16 -> Banking | E41: =GD2_BU1 -> 0.04 | F41: 0.04 | G41: 0.04 | H41: 0.04 | I41: 0.04 | J41: 0.04 | K41: 0.04 | L41: 0.04 | M41: 0.04 | N41: 0.04
B42: BU2 | C42: =$C$17 -> Consulting Services | E42: =GD2_BU2 -> 0.04 | F42: 0.04 | G42: 0.04 | H42: 0.04 | I42: 0.04 | J42: 0.04 | K42: 0.04 | L42: 0.04 | M42: 0.04 | N42: 0.04
B43: BU3 | C43: =$C$18 -> Retail Banking | E43: =GD2_BU3 -> 0.04 | F43: 0.04 | G43: 0.04 | H43: 0.04 | I43: 0.04 | J43: 0.04 | K43: 0.04 | L43: 0.04 | M43: 0.04 | N43: 0.04
B44: BU4 | C44: =$C$19 -> Financial Services | E44: =GD2_BU4 -> 0.04 | F44: 0.04 | G44: 0.04 | H44: 0.04 | I44: 0.04 | J44: 0.04 | K44: 0.04 | L44: 0.04 | M44: 0.04 | N44: 0.04
B45: BU5 | C45: =$C$20 -> Insurance | E45: =GD2_BU5 -> 0.04 | F45: 0.04 | G45: 0.04 | H45: 0.04 | I45: 0.04 | J45: 0.04 | K45: 0.04 | L45: 0.04 | M45: 0.04 | N45: 0.04
B46: Total % Change Year on Year | E46: =SUM(E41:E45) -> 0.2 | F46: 0.2 | G46: 0.2 | H46: 0.2 | I46: 0.2 | J46: 0.2 | K46: 0.2 | L46: 0.2 | M46: 0.2 | N46: 0.2
B48: BU1 | C48: =$C$16 -> Banking | E48: =Supply!E20*Demand!E41 -> 5.624 | F48: =Supply!F20*Demand!F41 -> 4.85851736 | G48: =Supply!G20*Demand!G41 -> 4.161417289 | H48: =Supply!H20*Demand!H41 -> 3.569622136 | I48: =Supply!I20*Demand!I41 -> 3.06673377 | J48: =Supply!J20*Demand!J41 -> 2.638311062 | K48: =Supply!K20*Demand!K41 -> 2.271955188 | L48: =Supply!L20*Demand!L41 -> 1.957243955 | M48: =Supply!M20*Demand!M41 -> 1.685735074 | N48: =Supply!N20*Demand!N41 -> 1.450726747
B49: BU2 | C49: =$C$17 -> Consulting Services | E49: =Supply!E27*Demand!E42 -> 2.7 | F49: =Supply!F27*Demand!F42 -> 2.332503 | G49: =Supply!G27*Demand!G42 -> 1.99783547 | H49: =Supply!H27*Demand!H42 -> 1.713723287 | I49: =Supply!I27*Demand!I42 -> 1.472293951 | J49: =Supply!J27*Demand!J42 -> 1.266614486 | K49: =Supply!K27*Demand!K42 -> 1.090732398 | L49: =Supply!L27*Demand!L42 -> 0.9396441465 | M49: =Supply!M27*Demand!M42 -> 0.8092967105 | N49: =Supply!N27*Demand!N42 -> 0.6964726561
B50: BU3 | C50: =$C$18 -> Retail Banking | E50: =Supply!E34*Demand!E43 -> 1.568 | F50: =Supply!F34*Demand!F43 -> 1.35457952 | G50: =Supply!G34*Demand!G43 -> 1.16022445 | H50: =Supply!H34*Demand!H43 -> 0.9952289314 | I50: =Supply!I34*Demand!I43 -> 0.8550210795 | J50: =Supply!J34*Demand!J43 -> 0.7355746347 | K50: =Supply!K34*Demand!K43 -> 0.6334327409 | L50: =Supply!L34*Demand!L43 -> 0.5456896377 | M50: =Supply!M34*Demand!M43 -> 0.4699915711 | N50: =Supply!N34*Demand!N43 -> 0.4044700462
B51: BU4 | C51: =$C$19 -> Financial Services | E51: =Supply!E41*Demand!E44 -> 1.808 | F51: =Supply!F41*Demand!F44 -> 1.56191312 | G51: =Supply!G41*Demand!G44 -> 1.337809826 | H51: =Supply!H41*Demand!H44 -> 1.14755989 | I51: =Supply!I41*Demand!I44 -> 0.9858916529 | J51: =Supply!J41*Demand!J44 -> 0.848162589 | K51: =Supply!K41*Demand!K44 -> 0.7303867319 | L51: =Supply!L41*Demand!L44 -> 0.6292135618 | M51: =Supply!M41*Demand!M44 -> 0.5419290565 | N51: =Supply!N41*Demand!N44 -> 0.4663787267
B52: BU5 | C52: =$C$20 -> Insurance | E52: =Supply!E48*Demand!E45 -> 0.54 | F52: =Supply!F48*Demand!F45 -> 0.4665006 | G52: =Supply!G48*Demand!G45 -> 0.3995670939 | H52: =Supply!H48*Demand!H45 -> 0.3427446575 | I52: =Supply!I48*Demand!I45 -> 0.2944587901 | J52: =Supply!J48*Demand!J45 -> 0.2533228972 | K52: =Supply!K48*Demand!K45 -> 0.2181464797 | L52: =Supply!L48*Demand!L45 -> 0.1879288293 | M52: =Supply!M48*Demand!M45 -> 0.1618593421 | N52: =Supply!N48*Demand!N45 -> 0.1392945312
B54: Growth Driver #3
B56: % Change year on year | E56: Year 1 | F56: Year 2 | G56: Year 3 | H56: Year 4 | I56: Year 5 | J56: Year 6 | K56: Year 7 | L56: Year 8 | M56: Year 9 | N56: Year 10
B57: BU1 | C57: =$C$16 -> Banking | E57: =GD3_BU1 -> 0.03 | F57: 0.03 | G57: 0.03 | H57: 0.03 | I57: 0.03 | J57: 0.03 | K57: 0.03 | L57: 0.03 | M57: 0.03 | N57: 0.03
B58: BU2 | C58: =$C$17 -> Consulting Services | E58: =GD3_BU2 -> 0.01 | F58: 0.01 | G58: 0.01 | H58: 0.01 | I58: 0.01 | J58: 0.01 | K58: 0.01 | L58: 0.01 | M58: 0.01 | N58: 0.01
B59: BU3 | C59: =$C$18 -> Retail Banking | E59: =GD3_BU3 -> 0.02 | F59: 0.02 | G59: 0.02 | H59: 0.02 | I59: 0.02 | J59: 0.02 | K59: 0.02 | L59: 0.02 | M59: 0.02 | N59: 0.02
B60: BU4 | C60: =$C$19 -> Financial Services | E60: =GD3_BU4 -> 0.01 | F60: 0.01 | G60: 0.01 | H60: 0.01 | I60: 0.01 | J60: 0.01 | K60: 0.01 | L60: 0.01 | M60: 0.01 | N60: 0.01
B61: BU5 | C61: =$C$20 -> Insurance | E61: =GD3_BU5 -> 0.05 | F61: 0.05 | G61: 0.05 | H61: 0.05 | I61: 0.05 | J61: 0.05 | K61: 0.05 | L61: 0.05 | M61: 0.05 | N61: 0.05
B62: Total % Change Year on Year | E62: =SUM(E57:E61) -> 0.12 | F62: 0.12 | G62: 0.12 | H62: 0.12 | I62: 0.12 | J62: 0.12 | K62: 0.12 | L62: 0.12 | M62: 0.12 | N62: 0.12
B64: BU1 | C64: =$C$16 -> Banking | E64: =Supply!E20*Demand!E57 -> 4.218 | F64: =Supply!F20*Demand!F57 -> 3.64388802 | G64: =Supply!G20*Demand!G57 -> 3.121062967 | H64: =Supply!H20*Demand!H57 -> 2.677216602 | I64: =Supply!I20*Demand!I57 -> 2.300050327 | J64: =Supply!J20*Demand!J57 -> 1.978733297 | K64: =Supply!K20*Demand!K57 -> 1.703966391 | L64: =Supply!L20*Demand!L57 -> 1.467932967 | M64: =Supply!M20*Demand!M57 -> 1.264301305 | N64: =Supply!N20*Demand!N57 -> 1.08804506
B65: BU2 | C65: =$C$17 -> Consulting Services | E65: =Supply!E27*Demand!E58 -> 0.675 | F65: =Supply!F27*Demand!F58 -> 0.58312575 | G65: =Supply!G27*Demand!G58 -> 0.4994588674 | H65: =Supply!H27*Demand!H58 -> 0.4284308219 | I65: =Supply!I27*Demand!I58 -> 0.3680734877 | J65: =Supply!J27*Demand!J58 -> 0.3166536214 | K65: =Supply!K27*Demand!K58 -> 0.2726830996 | L65: =Supply!L27*Demand!L58 -> 0.2349110366 | M65: =Supply!M27*Demand!M58 -> 0.2023241776 | N65: =Supply!N27*Demand!N58 -> 0.174118164
B66: BU3 | C66: =$C$18 -> Retail Banking | E66: =Supply!E34*Demand!E59 -> 0.784 | F66: =Supply!F34*Demand!F59 -> 0.67728976 | G66: =Supply!G34*Demand!G59 -> 0.5801122252 | H66: =Supply!H34*Demand!H59 -> 0.4976144657 | I66: =Supply!I34*Demand!I59 -> 0.4275105398 | J66: =Supply!J34*Demand!J59 -> 0.3677873174 | K66: =Supply!K34*Demand!K59 -> 0.3167163705 | L66: =Supply!L34*Demand!L59 -> 0.2728448188 | M66: =Supply!M34*Demand!M59 -> 0.2349957856 | N66: =Supply!N34*Demand!N59 -> 0.2022350231
B67: BU4 | C67: =$C$19 -> Financial Services | E67: =Supply!E41*Demand!E60 -> 0.452 | F67: =Supply!F41*Demand!F60 -> 0.39047828 | G67: =Supply!G41*Demand!G60 -> 0.3344524564 | H67: =Supply!H41*Demand!H60 -> 0.2868899726 | I67: =Supply!I41*Demand!I60 -> 0.2464729132 | J67: =Supply!J41*Demand!J60 -> 0.2120406473 | K67: =Supply!K41*Demand!K60 -> 0.182596683 | L67: =Supply!L41*Demand!L60 -> 0.1573033904 | M67: =Supply!M41*Demand!M60 -> 0.1354822641 | N67: =Supply!N41*Demand!N60 -> 0.1165946817
B68: BU5 | C68: =$C$20 -> Insurance | E68: =Supply!E48*Demand!E61 -> 0.675 | F68: =Supply!F48*Demand!F61 -> 0.58312575 | G68: =Supply!G48*Demand!G61 -> 0.4994588674 | H68: =Supply!H48*Demand!H61 -> 0.4284308219 | I68: =Supply!I48*Demand!I61 -> 0.3680734877 | J68: =Supply!J48*Demand!J61 -> 0.3166536214 | K68: =Supply!K48*Demand!K61 -> 0.2726830996 | L68: =Supply!L48*Demand!L61 -> 0.2349110366 | M68: =Supply!M48*Demand!M61 -> 0.2023241776 | N68: =Supply!N48*Demand!N61 -> 0.174118164

Sheet Faethm Data (hidden)
B2: Faethm Data
B3: Automation and Augmentation data per Role taken from the Faethm Platform | N3: Faethm Data
N4: Instance | O4: AU Census
B5: Automation | C5: 1 | D5: 2 | E5: 3 | F5: 4 | G5: 5 | H5: 6 | I5: 7 | J5: 8 | K5: 9 | L5: 10 | N5: Job | O5: Business and Systems Analysts, and Programmers
B6: Business Analyst | C6: 0.019 | D6: 0.024 | E6: 0.029 | F6: 0.035 | G6: 0.04 | H6: 0.046 | I6: 0.051 | J6: 0.056 | K6: 0.06 | L6: 0.064 | N6: Industry | O6: Financial & Insurance Services
B13: Augmentation | C13: 1 | D13: 2 | E13: 3 | F13: 4 | G13: 5 | H13: 6 | I13: 7 | J13: 8 | K13: 9 | L13: 10
B14: =B6 -> Business Analyst | C14: 0.041 | D14: 0.055 | E14: 0.072 | F14: 0.092 | G14: 0.114 | H14: 0.138 | I14: 0.162 | J14: 0.185 | K14: 0.206 | L14: 0.226
B15: =B7 -> 0
B16: =B8 -> 0
B17: =B9 -> 0
B18: =B10 -> 0
B22: EXAMPLE
B23: Initial FTE
B24: 1000 | C24: =$B$24*C$6 -> 19 | D24: =$B$24*D$6 -> 24 | E24: 29 | F24: 35 | G24: 40 | H24: 46 | I24: 51 | J24: 56 | K24: 60 | L24: 64 | M24: Cumulative Automated FTEs
B25: =B24 -> 1000 | C25: =$B$24-C24 -> 981 | D25: =$B$24-D24 -> 976 | E25: 971 | F25: 965 | G25: 960 | H25: 954 | I25: 949 | J25: 944 | K25: 940 | L25: 936
C26: =C24 -> 19 | D26: =D24-C26 -> 5 | E26: =E24-D24 -> 5 | F26: =F24-E24 -> 6 | G26: =G24-F24 -> 5 | H26: 6 | I26: 5 | J26: 5 | K26: 4 | L26: 4
C27: =$B$24*C6 -> 19 | D27: =$B$24*D6-SUM(C27) -> 5 | E27: =$B$24*E6-SUM(C27:D27) -> 5 | F27: =$B$24*F6-SUM(C27:E27) -> 6 | G27: =$B$24*G6-SUM(C27:F27) -> 5 | H27: =$B$24*H6-SUM(C27:G27) -> 6 | I27: =$B$24*I6-SUM(C27:H27) -> 5 | J27: =$B$24*J6-SUM(C27:I27) -> 5 | K27: =$B$24*K6-SUM(C27:J27) -> 4 | L27: =$B$24*L6-SUM(C27:K27) -> 4 | M27: Old calc Considering a fixed initial supply
C28: =$B$24*C6 -> 19 | D28: =$B$24*(D6-C6) -> 5 | E28: =$B$24*(E6-D6) -> 5 | F28: 6 | G28: 5 | H28: 6 | I28: 5 | J28: 5 | K28: 4 | L28: 4 | M28: New calc Considering a fixed Initial Supply number
C30: =B25*C6 -> 19 | D30: =C25*D6 -> 23.544 | E30: =D25*E6 -> 28.304 | F30: 33.985 | G30: 38.6 | H30: 44.16 | I30: 48.654 | J30: 53.144 | K30: 56.64 | L30: 60.16
C31: =C30 -> 19 | D31: =D30-C30 -> 4.544 | E31: =E30-D30 -> 4.76 | F31: =F30-E30 -> 5.681 | G31: 4.615 | H31: 5.56 | I31: 4.494 | J31: 4.49 | K31: 3.496 | L31: 3.52 | M31: Considering a variable supply - multiply by actual % and subtract the total FTEs already automated
C32: =B25*C6 -> 19 | D32: =C25*(D6-C6) -> 4.905 | E32: =D25*(E6-D6) -> 4.88 | F32: 5.826 | G32: 4.825 | H32: 5.76 | I32: 4.77 | J32: 4.745 | K32: 3.776 | L32: 3.76 | M32: New calc considering a variable supply
C33: =B25*C6 -> 19 | D33: =C25*D6-C33 -> 4.544 | E33: =D25*E6-SUM(C33:D33) -> 4.76 | F33: =E25*F6-SUM(C33:E33) -> 5.681 | G33: =F25*G6-SUM(C33:F33) -> 4.615 | H33: =G25*H6-SUM(C33:G33) -> 5.56 | I33: =H25*I6-SUM(C33:H33) -> 4.494 | J33: =I25*J6-SUM(C33:I33) -> 4.49 | K33: =J25*K6-SUM(C33:J33) -> 3.496 | L33: =K25*L6-SUM(C33:K33) -> 3.52 | M33: Old calc considering a variable supply
D34: =1-D33/D32 -> 0.07359836901 | E34: =1-E33/E32 -> 0.02459016393 | F34: 0.02488843117 | G34: 0.04352331606 | H34: 0.03472222222 | I34: 0.05786163522 | J34: 0.05374077977 | K34: 0.07415254237 | L34: 0.06382978723

Sheet Attrition_Template
B2: Attrition Rates
B4: Role | C4: ="Average Headcount " & D9 -> Average Headcount 2018 | D4: ="Number of Voluntary Leavers " & D9 -> Number of Voluntary Leavers 2018 | E4: ="Attrition Rate " & D9 -> Attrition Rate 2018 | F4: ="Average Headcount " & E9 -> Average Headcount 2019 | G4: ="Number of Voluntary Leavers " & E9 -> Number of Voluntary Leavers 2019 | H4: ="Attrition Rate " & E9 -> Attrition Rate 2019 | I4: ="Average Headcount " & F9 -> Average Headcount 2020 | J4: ="Number of Voluntary Leavers " & F9 -> Number of Voluntary Leavers 2020 | K4: ="Attrition Rate " & F9 -> Attrition Rate 2020 | L4: 3 Year Ave Voluntary Attrition Rate | M4: % of Attrition that is Retirement | N4: Ave Voluntary Attrition excl Retirement
B5: =B32 -> Client Service Representative | C5: =D32 -> 5791 | D5: =+D21+D22+D25 -> 28 | E5: =D5/C5 -> 0.004835088931 | F5: =E32 -> 5767 | G5: =+E21+E22+E25 -> 36 | H5: =G5/F5 -> 0.006242413733 | I5: =F32 -> 5747 | J5: =F21+F22+F25 -> 32 | K5: =J5/I5 -> 0.005568122499 | L5: =(D5+G5+J5)/SUM(C5+F5+I5) -> 0.005547529616 | M5: =G21/((C5+F5+I5)/3) -> 0.01456226524 | N5: =((D5+G5+J5)-(D21+E21+F21))/SUM(C5+F5+I5) -> 0.000693441202
B6: *Excludes Contractors and Fixed Term employees - voluntary turnover rate of Permanent employees only.
B9: TEMPLATE | C9: Reason for action | D9: 2018 | E9: 2019 | F9: 2020 | G9: Total | H9: % Attrition
B10: Voluntary | C10: Resignation | G10: =SUM(D10:F10) -> 0 | H10: =G10/$G$18 -> 
B11: Voluntary | C11: Retirement | G11: =SUM(D11:F11) -> 0
B12: Voluntary | C12: Redundancy - Voluntary | G12: =SUM(D12:F12) -> 0
B13: Involuntary | C13: Redundancy - Involuntary | G13: 0
B14: Involuntary | C14: Dismissal | G14: 0
B15: Voluntary | C15: Abandonment of Employment | G15: 0
B16: Involuntary | C16: Deceased | G16: 0
B17: Involuntary | C17: Other | G17: 0
C18: Total | D18: =SUM(D10:D17) -> 0 | E18: =SUM(E10:E17) -> 0 | F18: =SUM(F10:F17) -> 0 | G18: =SUM(G10:G17) -> 0
B20: Role | C20: Reason for action | D20: =D9 -> 2018 | E20: =E9 -> 2019 | F20: 2020 | G20: Total | H20: % Attrition
C21: Retirement | D21: 25 | E21: 30 | F21: 29 | G21: =SUM(D21:F21) -> 84 | H21: =G21/$G$28 -> 0.4263959391
C22: Redundancy - Voluntary | D22: 3 | E22: 5 | F22: 3 | G22: =SUM(D22:F22) -> 11 | H22: 0.05583756345
C23: Redundancy - Involuntary | D23: 35 | E23: 29 | F23: 32 | G23: =SUM(D23:F23) -> 96 | H23: 0.4873096447
C24: Dismissal | D24: 1 | E24: 3 | F24: 2 | G24: =SUM(D24:F24) -> 6 | H24: 0.03045685279
C25: Abandonment of Employment | E25: 1 | H25: 0
C26: Deceased | F26: 1 | H26: 0
C27: Other | H27: 0
C28: Total | D28: =SUM(D21:D27) -> 64 | E28: =SUM(E21:E27) -> 68 | F28: =SUM(F21:F27) -> 67 | G28: =SUM(G21:G24) -> 197
B31: Average Headcount | D31: =D9 -> 2018 | E31: =E9 -> 2019 | F31: 2020
B32: ='Summary Output'!E7 -> Client Service Representative | D32: 5791 | E32: 5767 | F32: 5747

Sheet TOP3 Roles Y5 (hidden)
A3: Row Labels | B3: Sum of CapFTE5 | C3: Sum of AutFTE5 | D3: Sum of TOTAL5 | F3: Not been used in the new model
A4: Tellers | B4: 147.8961892 | C4: 3067.881046 | D4: 3215.777235
A5: Loan Interviewers and Clerks | B5: 0 | C5: 972.2428728 | D5: 972.2428728
A6: Loan Officers | B6: 263.4643454 | C6: 488.1316856 | D6: 751.596031
A7: Grand Total | B7: 411.3605346 | C7: 4528.255604 | D7: 4939.616139

Sheet TOP5 BU Y5 (hidden)
A3: Row Labels | B3: Sum of CapFTE5 | C3: Sum of AutFTE5 | D3: Sum of TOTAL5 | G3: Not been used in the new model
A4: Retail Banking | B4: 847.2809805 | C4: 5616.209832 | D4: 6463.490813
A5: New Business | B5: 121.6139503 | C5: 877.5489649 | D5: 999.1629151
A6: Corporate Finance | B6: 223.475429 | C6: 350.2379096 | D6: 573.7133386
A7: Finance | B7: 70.78444535 | C7: 420.8532457 | D7: 491.6376911
A8: Risk | B8: 127.6932012 | C8: 345.8808785 | D8: 473.5740797
A9: ITBS | B9: 34.30585903 | C9: 21.61883607 | D9: 55.9246951
A10: Transformation | B10: 26.50660802 | C10: 21.93129094 | D10: 48.43789897
A11: Head Office | B11: 18.07430616 | C11: 14.84318945 | D11: 32.91749561
A12: B2B | B12: 4.031205516 | C12: 23.84354407 | D12: 27.87474958
A13: Human Resources | B13: 12.36434904 | C13: 12.91493677 | D13: 25.27928582
A14: Legal | B14: 1.613309345 | C14: 9.640857392 | D14: 11.25416674
A15: 0 | B15: 0 | C15: 0 | D15: 0
A16: Grand Total | B16: 1487.743643 | C16: 7715.523486 | D16: 9203.267129
